{"text_format":"1","workbook":"xlsx","n_sheets":5,"sheets":["Info","Uppdateringar","F-sida","ÅRSREDOVISNING","Sheet1"],"not_rendered":{"charts":0,"images":0,"macros":1,"external_links":0,"defined_names":70,"comments":2,"pivot_tables":0},"unopened":[],"bounds":{"document_bytes":16777216,"sheet_cells":100000,"rows_first":2000,"rows_last":500,"rows_between":2000,"halvings":0,"cell_chars":16384,"cell_head_chars":4096},"cells_cut":0,"cells_raw":0,"read":"whole","date_system":"1904"}

{"sheet":"Info","index":0,"n_rows":80,"n_cols":3,"rows_kept":80,"cut":false,"hidden":false,"merged":[]}
[]
[null,"Information om Årsredovisningsmall"]
[null,{"$f":"'F-sida'!E1","v":"014214s AB-K-min Årsredovisningsmall.xls (version 2009.12)"}]
[]
[null,"Detta är en miniversion av årsredovisningsmall för enskilt bolag med"]
[null,"kostnadsslagsindelad resultaträkning enligt ÅRL."]
[]
[null,"Observera! Användning av modellen sker på eget ansvar. KPMG"]
[null,"ansvarar således inte för modellens funktionalitet i alla avseenden "]
[null,"eller att modellen utgör en komplett sammanställning över samtliga upplysningskrav"]
[null,"föranledda av lagstiftning eller normgivning. "]
[null,"För klientföretag, som förvärvat  KPMGs årsredovisningsmodell förutsätts i första "]
[null,"hand att support lämnas av företagets revisor eller närmaste KPMG-kontor."]
[null,"Årsredovisningsmallen får endast vidarebefordras till företag inom köparföretagets "]
[null,"koncern."]
[null,"Rekommenderat riktpris 1 900 kronor exkl moms."]
[]
[null,"Syftet med modellen är"]
[null,"•","att den skall vara så heltäckande i sitt grundutförande att man normalt inte"]
[null,null,"skall behöva lägga till poster i RR, BR eller noter. Endast ren textinforma-"]
[null,null,"tion och vissa kommentarer i noter kan kräva att rader infogas."]
[null,"•","att alla belopp som kan beräknas, summeras eller länkas till exempelvis"]
[null,null,"finansieringsanalys eller noter inte skall behöva matas in på nytt."]
[null,"•","att alla felaktigt eller ofullständigt inmatade belopp automatiskt skall"]
[null,null,"indikeras."]
[null,"•","att den enkelt skall kunna anpassas till ett nytt år genom att anropa ett"]
[null,null,"makro."]
[null,"•","att alla rader i modellen som ej är relevanta eller använda skall indikeras"]
[null,null,"(röd symbol I A-kolumnen) för att underlätta manuell redigering. Liten blå"]
[null,null,"symbol i B-kolumnen indikerar att raden fysiskt kan tas bort utan risk för"]
[null,null,"beräkningsproblem."]
[]
[null,"Tekniken att arbeta med modellen är följande:"]
[null,"•","Endast celler eller områden med gul grundton skall/får fyllas i."]
[null,"•","Vid inmatning av text på flera rader kan en snygg radfördelning"]
[null,null,"åstadkommas på följande vis:1) Infoga tillräckligt många radkopior där"]
[null,null,"texten skall få plats 2) Skriv in texten och bortse ifrån radlängden. 3)"]
[null,null,"Markera hela det område som texten skall rymmas inom. 4) Välj Edit Fill"]
[null,null,"Justify - (Redigera Fyll Justering) texten fördelas mellan raderna."]
[null,"•","Lämpligaste arbetsgången är att fylla i de olika delarna i följande ordning;"]
[null,null,"RR, BR, poster Inom linjen, Noter och Förvaltningsberättelsen."]
[null,"•","Ej använda rader skall normalt ej tas bort utan döljas (använd färdig"]
[null,null,"makroknapp). Rader i rena textområden  (t ex i FB eller vissa noter) kan"]
[null,null,"dock tas bort fysiskt om så önskas (Dessa är indikerade med blå punkter"]
[null,null,"i B-kolumnen."]
[null,"•","Använda noter numreras manuellt i notapparaten. Härvid länkas"]
[null,null,"notnumret till aktuell post i RR eller BR."]
[null,"•","När alla delar är ifyllda och ej använda rader och noter har gömts, sker"]
[null,null,"förhandsgranskning på skärm eller utskrift på papper."]
[null,"•","Slutlig anpassning görs genom att infoga lämpliga sidbrytningar i"]
[null,null,"notapparaten."]
[null,"•","Utskrift sker sedan genom att först skriva ut bladet \"Årsredovisning\". "]
[null,null,"F-sidans uppgifter beträffande sidhänvisningar fylls sedan i före utskrift."]
[]
[null,"Att notera"]
[null,"•","Område reserverat för respektive not framgår ur prickade vågräta linjer "]
[null,null,"i kolumnerna A och B. "]
[null,"•","Modellen är dokumentskyddad men utan lösenord."]
[null,"•","För att på ett effektivt sätt dra nytta av modellens kapacitet förutsätts"]
[null,null,"vissa Excelkunskaper."]
[null,"•","Om man själv gör anpassningar i notapparaten, exempelvis lägger till eller"]
[null,null,"flyttar noter, kan det förberedda årsbytesmakrot behöva redigeras."]
[null,null,"Årsbytesmakrot arbetar med färdigdefinierade områdesnamn som om"]
[null,null,"man lägger till eller flyttar noter kan behöva omdefinieras för att fungera."]
[]
[null,"Befintliga varianter av modellen"]
[null,"•","Maxversion för koncern, funktions- resp kostnadsslagsindelad"]
[null,null,"resultaträkning"]
[null,"•","Maxversion för enskilt bolag, funktions- resp kostnadsslagsindelad"]
[null,null,"resultaträkning"]
[null,"•","Miniversion för mindre enskilda bolag, kostnadsslagsindelad"]
[null,null,"resultaträkning"]
[]
[null,"Detta är Windows-version för Excel och kan inte köras på Macintosh"]
[null,"utan särskild layoutkonvertering."]
[]
[null,"Synpunkter på modellen kan lämnas till Louise Sjödin, KPMG"]
[null,"AAS i Stockholm. E-mail: louise.sjodin@kpmg.se."]
[null,"Tekniska förfrågningar kan göras till Micael Brunosson, KPMG Växjö"]
[null,"E-mail: micael.brunosson@kpmg.se"]

{"sheet":"Uppdateringar","index":1,"n_rows":67,"n_cols":3,"rows_kept":67,"cut":false,"hidden":false,"merged":[]}
[]
[null,"Årsredovisningsmall"]
[null,{"$f":"'F-sida'!E1","v":"014214s AB-K-min Årsredovisningsmall.xls (version 2009.12)"}]
[]
[null,"Tidigare utgåvor (ÅÅMM) = 9709, 9710, 9711, 9712, 9801, 9804, 0002, 0103 och 0411"]
[]
[null,"Uppdateringar i version 2000-08-18"]
[null,"1)","Vissa indexformler som tidigare felaktigt summerade värden från"]
[null,null,"jämförelseåret i notapparaten har åtgärdats."]
[]
[null,"2)","Vissa formler som beräknade och indikerade för rader som kunde"]
[null,null,"gömmas i kassaflödesanalys och notapparat innehöll tidigare referensfel eller "]
[null,null,"en felaktig radförskjutning vilket har rättats i denna version."]
[]
[null,"Uppdateringar i version 2001-03-07"]
[null,"1)","Anpassning för redovisning av leasingavtal enligt Bokföringsnämndens"]
[null,null,"lättnadsregler BFNAR 2000:4."]
[]
[null,"2)","Anpassning för redovisning av allokerade företagsanknutna medel från SPP."]
[]
[null,"Uppdateringar i version  2002-11-30"]
[null,null,"Anpassning till Bokföringsnämndens Allmänna råd."]
[null,null,"-BFNAR 2001:1 Redovisning av inkomstskatt"]
[null,null,"-BFNAR 2001:3 Redovisning av materiella anläggningstillgångar"]
[]
[null,"Uppdateringar i version  2004-01-31"]
[null,null,"Anpassning till förändringar i Årsredovisningslagen (1995:1554)"]
[null,null,"-ÅRL 5 kap 18a § Sjukfrånvaro"]
[null,null,"-ÅRL 5 kap 18b § Könsfördelning i företagsledningar"]
[null,null,"Anpassning till Bokföringsnämndens Allmänna råd."]
[null,null,"-BFNAR 2003:3 Redovisning av intäkter"]
[]
[null,"Uppdateringar i version  2004-11-30"]
[null,null,"Anpassningar till förändringar i Årsredovisningslagen (1995:1554)"]
[null,null,"-ÅRL 6 kap 1§ Information om finansiella risker"]
[null,null,"-ÅRL 4 kap 14a §-14e Värdering av finansiella instrument och säkrade poster"]
[null,null,"-ÅRL 5 kap 4a § - 4c Upplysningar om finansiella instrument"]
[]
[null,"Uppdateringar i version  2006.12"]
[null,null,"Anpassning till ändringar i Årsredovisningslagen avseende upplysning i förvaltningsberättelsen."]
[null,null,"-ÅRL 6 kap 1§ första stycket om förklaring av belopp i rapporterna"]
[]
[]
[null,"Att notera:"]
[null,"1)","Små icke-noterade koncerner (10/24-bolag) behöver ej upprätta"]
[null,null,"koncernredovisning (ÅRL 7:3, lagändring med tillämpning från 2000)"]
[]
[null,"2)","Dispenskravet för förkortad resultaträkning av konkurrensskäl är"]
[null,null,"borttaget för bolag som inte omfattas av kravet på finansieringsanalys/-"]
[null,null,"kassaflödesanalys. Nettoomsättning måste dock framgå (ÅRL 4:11,"]
[null,null,"lagändring med tillämpning från 2000)."]
[]
[null,"Uppdateringar i version  2007.11"]
[]
[null,"Att notera:"]
[null,"1) ","Begreppen stora, medelstora och småföretag (10/24 bolag) har ersatts med större företag och mindre företag"]
[]
[null,"2)","Redaktionella ändringar"]
[]
[null,"Uppdateringar i version  2008.12"]
[]
[null,null,"Huvudsakligen redaktionella ändringar."]
[]
[]
[null,"Uppdateringar i version  2009.12"]
[]
[null,null,"Huvudsakligen redaktionella ändringar."]

{"sheet":"F-sida","index":2,"n_rows":36,"n_cols":6,"rows_kept":36,"cut":false,"hidden":false,"merged":[]}
[null,null,null,null,"014214s AB-K-min Årsredovisningsmall.xls (version 2009.12)"]
[]
[]
[]
[]
[]
[]
[]
[]
[]
[null,null,null,null,"Styrelsen för"]
[]
[null,null,null,null,"BRF Falken 1"]
[null,null,null,null,"Org nr 769616-0915"]
[]
[]
[null,null,null,null,"får härmed avge"]
[null,null,null,null,"Årsredovisning"]
[]
[null,null,null,null,"för räkenskapsåret 1 januari - 31 december 2016"]
[]
[]
[]
[]
[]
[]
[]
[]
[null,null,null,"Innehåll:",null,"sida"]
[null,null,null,"Förvaltningsberättelse",null,2]
[null,null,null,"Resultaträkning",null,4]
[null,null,null,"Balansräkning",null,5]
[null,null,null,"Ställda säkerheter och ansvarsförbindelser",null,6]
[null,null,null,"Noter med redovisningsprinciper och"]
[null,null,null,"bokslutskommentarer",null,7]
[null,null,null,"Underskrifter",null,9]

{"sheet":"ÅRSREDOVISNING","index":3,"n_rows":1110,"n_cols":23,"rows_kept":1110,"cut":false,"hidden":false,"merged":[[23,14,23,22],[22,14,22,22],[159,3,159,12]]}
[null,null,null,null,null,null,null,null,null,null,null,null,null,null,"Jmf-år"]
[null,null,{"$f":"'F-sida'!E13","v":"BRF Falken 1"}]
[null,null,{"$f":"'F-sida'!E14","v":"Org nr 769616-0915"}]
[]
[]
[]
[null,null,null,"Förvaltningsberättelse"]
[]
[null,null,null,"Allmänt om föreningen"]
[null,null,null,"Föreningen har tilländamål att främja sina medlemmars ekonomiska intressen genom att i "]
[null,null,null,"föreningens ägda fastighet i Åre Björnen upplåta fritidsbostäder åt medlemmarna till nyttjande "]
[null,"w",null,"utan tidsbegräning.",null,"Föreningen beskattas som en äkta förening."]
[null,"w"]
[null,"w"]
[null,"w"]
[null,"w"]
[null,"w"]
[null,"w"]
[null,"w"]
[]
[]
[null,"w"]
[]
[]
[]
[null,"w"]
[null,"w"]
[null,"w",null,"Föreningens byggnad"]
[null,null,null,"Föreningen förvärvade den nybyggda fastigheten Åre Svedje 1:319 i slutet av 2007. Byggnaden är "]
[null,null,null,"fullvärdesförsäkrad hos Moderna Försäkringar genom medlemskap i Bostadsrätterna."]
[]
[null,null,null,"Föreningens byggnad utgörs av ett flerbostadshus med 2 våningar innehållande fyra"]
[null,null,null,"lägenheter."]
[]
[null,null,null,"Den totala boytan uppgår till 280 kvm, varav 276 kvm utgör lägenhetsyta."]
[null,null,null,"Förvaltningen sköts av styrelsen."]
[]
[null,null,null,"Lägenhetsfördelning"]
[null,null,null,"Fyra lägenheter med 4 rum och köksavdelning à 69 kvm. Lägenheterna i plan 2 har dessutom "]
[null,null,null,"ett mindre sovloft med takhöjd under 1,9 meter med plats för två sängar."]
[]
[]
[null,null,null,"Fastighetens tekniska status"]
[null,null,null,"Under 2014 har skorstenar och takpannor reparerats efter stormar. Ytterligare en p-plats har anlagts"]
[null,null,null,"samt gräsytor snyggats upp. En underhållsplan finns upprättad. Under 2015 har bredband"]
[null,null,null,"installerats. Under 2017 har utvändig målning av fastigheten genomförts och dräneringsrör har nedlagts."]
[]
[null,null,null,"Föreningsfrågor"]
[null,null,null,"Stadgar"]
[null,null,null,"Föreningens gällande stadgar registrerades hos Bolagsverket 2007-02-20."]
[null,null,null,"För att reglera förhållandet mellan de personer som tillsammans äger samma bostadsrätt i "]
[null,null,null,"plan 2 har upprättats speciella samägarvillkor. Dessa förändrades 2012-01-01."]
[]
[null,null,null,"Andelar"]
[null,null,null,"Föreningen innehåller fyra lägenheter med andelstal om 25% per lägenhet."]
[null,null,null,"De två lägenheterna i plan 2 är fördelade på vardera 10 andelar."]
[]
[null,null,null,"Medlemmar"]
[null,null,null,"Föreningen hade vid årets slut 38 medlemmar som äger lägenhetsandelar enligt köpehandlingar. "]
[null,null,null,"En ny medlem har antagits år 2017."]
[]
[null,null,null,"Samfällighet"]
[null,null,null,"Samtliga fastighetsägare i Åre Björnen är, genom lantmäteriförättning, anslutna till Åre Björnen"]
[null,null,null,"Samfällighetsförening (ÅBS)."]
[null,null,null,"ÅBS svarar för underhåll och drift/skötsel av vägar, vägbelysning, VA- och Kabel-TV nät"]
[null,null,null,"samt avfallshantering inom och från området."]
[null,null,null,"För detta arbete tar ÅBS ut en medlemsavgift som baseras på andelstal som fastställs per "]
[null,null,null,"lägenhet när fastigheten ansluts och har erhållit bygglov. "]
[]
[null,null,null,"Föreningen är även medlem i Fröåvägens samfällighet vilken svarar för underhåll och drift/skötsel av"]
[null,null,null,"Fröåvägen och stickvägen förbi Björnen liftens dalstation samt gatubelysningen upp till Åre Björnen. "]
[null,null,null,"För detta arbete tar samfälligheten ut en andelsavgift som baseras på andelstal per lägenhet."]
[]
[null,null,null,"Styrelse, revisorer och valberedning"]
[]
[null,null,null,"Styrelse"]
[null,null,null,"Enligt föreningens stadgar skall styrelsen bestå av lägst 3 och högst 5 ledamöter och högst 3 "]
[null,null,null,"suppleanter. Styrelsen har följande sammansättning:"]
[]
[null,null,null,"Kerstin Edman",null,null,"Ordförande"]
[null,null,null,"Peo Axelsson ",null,null,"Sekreterare"]
[null,null,null,"Claes Engblom",null,null,"Kassör"]
[null,null,null,"Kenneth Johansson",null,null,"Styrelsesuppleant"]
[null,null,null,"Marika Dymling",null,null,"Styrelsesuppleant"]
[]
[null,null,null,"Revisorer"]
[null,null,null,"Carina Staf",null,null,"Ordinarie"]
[null,null,null,"Mattias Kylner",null,null,"Revisorssuppleant"]
[]
[null,null,null,"Valberedning"]
[null,null,null,"Vivi Steen"]
[null,null,null,"Elisabet Schell"]
[]
[null,null,null,"Under verksamhetsåret har styrelsen haft fem styrelsemöten samt flertalet mail- och telefonkontakter."]
[]
[null,null,null,"Föreningens ekonomi"]
[]
[null,null,null,"Kapitaltillskott"]
[null,null,null,"I december 2012 amorterades banklån med SEK 100 000 vilket skall betraktas som "]
[null,null,null,"kapitaltillskott som medlemmar kan dra nytta av vid kommande försäljningar. Ytterligare"]
[null,null,null,"SEK 300 000 amorterades i december 2014. I november 2017 har banklån amorterats med SEK 250 000."]
[]
[null,"w",null,"Fastighetavgift"]
[null,"w",null,"Från och med 2015 till och med 2017 erlägger föreningen halv fastighetsavgift och från 2018"]
[null,"w",null,"kommer full fastighetsavgift belasta föreningen."]
[]
[null,null,null,"Ekonomisk historik"]
[null,"w",null,"Se bilaga 1."]
[null,"w"]
[null,"w"]
[null,"w"]
[null,"w"]
[null,null,null,"Verksamhet inom forskning och utveckling"]
[null,null,null,"[ Löpande text:] "]
[null,null,null,"[ Upplysning ska, enligt ÅRL 6 kap 1§ 4p,  lämnas av de företag som bedriver omfattande forskning och utveckling."]
[null,null,null,"Om upplysning ska lämnas bör det ingå en koncentrerad verbal beskrivning av företagets forsknings- och"]
[null,null,null,"utvecklingspolicy, inriktning och resursinsatser samt uppgifter om verksamhetens andel av de totala"]
[null,null,null,"rörelsekostnaderna och om förändringar under året. ]"]
[]
[null,null,null,"Byte av redovisningsprincip"]
[null,null,null,"[Om företaget tillämpat nya rekommendationer som fått väsentlig effekt på resultat och ställning bör detta omnämnas"]
[null,null,null,"även i förvaltningsberättelsen och inte bara i noterna.]"]
[null,null,null,"Från och med den 1 januari 20XX tillämpar företaget BFNARX. Införandet av den/de nya"]
[null,null,null,"rekommendationen/erna har inneburit ett byte av redovisningsprinciper och har haft "]
[null,null,null,"betydande effekt på resultat- och balansräkningarna. För att uppnå jämförbarhet över "]
[null,null,null,"företagets utveckling och ställning har omräkning skett av jämförelseåret/en."]
[]
[null,null,null,"Riktade emissioner m m"]
[null,null,null,"[ Löpande text: ]"]
[null,null,null,"[ Information skall i förekommande fall lämnas om transaktioner enligt aktiebolagslagen  (2005:551) 16 kap 10§. ]"]
[]
[null,null,null,"Uppgifter om förvärv, överlåtelse samt innehav av egna aktier"]
[null,null,null,"[ Löpande text: ]"]
[]
[]
[null,null,null,"Återköp av egna aktier"]
[null,null,null,"[ Löpande text:]"]
[null,null,null,"[ Upplysning skall lämnas om återköp av egna aktier. Uppgift skall lämnas om antal egna aktier som förvärvats resp"]
[null,null,null,"avyttrats under året samt kvarstående innehav vid årets slut. Upplysning skall även lämnas om skälen till de förvärv"]
[null,null,null,"eller överlåtelser som skett under året. Tillsammans med dessa uppgifter skall även anges kvotvärdet andel av"]
[null,null,null,"aktiekapitalet samt vederlagets storlek. ]"]
[]
[null,null,null,"Förslag till disposition beträffande föreningens vinst eller förlust"]
[]
[null,null,null,"Till bolagsstämmans förfogande står följande ansamlad vinst:"]
[null,null,null,null,null,null,null,null,null,null,null,null,null,0]
[null,null,null,"Balanserat resultat",null,null,null,null,null,null,null,85566,null,0]
[null,null,null,"Årets resultat",null,null,null,null,null,null,null,23465,null,0]
[null,null,null,"Totalt",null,null,null,null,null,null,null,{"$f":"SUM(L147:L148)","v":109031},null,{"$f":"SUM(N146:N148)","v":0}]
[]
[null,null,null,"Styrelsen föreslår att den ansamlade vinsten behandlas enligt följande:"]
[null,null,null,"Avsättning till fond för yttre underhåll",null,null,null,null,null,null,null,21150]
[null,null,null,"Balanseras i ny räkning",null,null,null,null,null,null,null,87881]
[]
[]
[]
[null,null,null,"Beträffande föreningens resultat och ställning i övrigt hänvisas till följande resultat- och "]
[null,null,null,"balansräkning med noter."]
[]
[null,null,null,"Enligt ABL 18 kap 2§ ska styrelsen, eller om förslaget väckts av någon annan, förslagsställaren (förslag från aktieägarminoritet undantaget) upprätta ett förslag till beslut om vinstutdelning. Det är inget krav att infoga detta ”förslag till beslut om vinstutdelning” i förvaltningsberättelsen (innehållsmässiga krav som åsyftas framgår av ABL 18 kap 3§ och ska inte sammanblandas med ÅRLs upplysningskrav om vinstdisposition i 6 kap 2§, ovan). Enligt ABL 18 kap 4§ ska vidare till förslaget om vinstutdelning fogas ett motiverat yttrande från styrelsen om huruvida den föreslagna vinstutdelningen är försvarlig med hänvisning till försiktighetsregeln i ABL 17 kap 3§ andra och tredje stycket. "]
[]
[]
[null,null,null,"Resultaträkning"]
[null,null,null,null,null,null,null,null,null,null,"2017-01-01",null,"2016-01-01",null,"2012-01-01",null,null,null,null,{"$f":"#REF!=#REF!","v":{"$error":"#REF!"}}]
[null,null,null,"Belopp i kr",null,null,null,null,"Not",null,"- 2017-12-31",null,"- 2016-12-31",null,"- 2012-12-31",null,null,null,null,{"$f":"#REF!","v":{"$error":"#REF!"}}]
[]
[null,null,null,"Årsavgifter",null,null,null,null,null,null,144000,null,144000,null,253963]
[null,null,null,"Förändring av produkter i arbete, färdiga varor"]
[null,null,null,"samt pågående arbeten för annans räkning",null,null,null,null,null,null,0,null,0,null,0]
[null,null,null,"Övriga rörelseintäkter",null,null,null,null,null,null,0,null,0,null,0]
[null,null,null,"Årsavgifter tillägg lgh A+B (utöver fondavsättning)",null,null,null,null,null,null,47067,null,45337]
[null,null,null,"Förseningsavgift",null,null,null,null,null,null,0,null,50]
[null,null,null,"Summa avgifter",null,null,null,null,null,null,{"$f":"SUM(K167:K172)","v":191067},null,{"$f":"SUM(M167:M172)","v":189387},null,253963]
[]
[null,null,null,"Rörelsens kostnader"]
[null,null,null,"Driftskostnader",null,null,null,null,1,null,-63441,null,-38025,null,-90654]
[null,null,null,"Driftskostnader lgh A",null,null,null,null,1,null,-20010,null,-28727]
[null,null,null,"Driftskostnader lgh B",null,null,null,null,1,null,-27057,null,-16610]
[null,null,null,"Övriga externa kostnader",null,null,null,null,null,null,-7567,null,-9625,null,-21830]
[null,null,null,"Avskrivningar av materiella "]
[null,null,null,"Avskrivningar",null,null,null,null,{"$f":"MID($D$612,5,2)","v":""},null,-23500,null,-23500,null,-70500]
[null,null,null,"Övriga rörelsekostnader",null,null,null,null,null,null,0,null,0,null,0]
[null,null,null,"Rörelseresultat",null,null,null,null,null,null,{"$f":"SUM(K173:K182)","v":49492},null,{"$f":"SUM(M173:M182)","v":72900},null,70979]
[]
[null,null,null,"Resultat från finansiella poster"]
[null,null,null,"Resultat från övriga värdepapper och fordringar"]
[null,null,null,"som är anläggningstillgångar",null,null,null,null,null,null,0,null,0,null,0]
[null,null,null,{"$f":"IF(SUM(L186:M187)=0,\"Ränteintäkter och liknande resultatposter\",\"Övriga ränteintäkter och liknande resultatposter\")","v":"Ränteintäkter och liknande resultatposter"},null,null,null,null,null,null,null,null,null,null,1273.42]
[null,null,null,"Räntekostnader och liknande resultatposter",null,null,null,null,null,null,-23471,null,-24500,null,-64993]
[null,null,null,"Resultat efter finansiella poster",null,null,null,null,null,null,{"$f":"SUM(K183:K189)","v":26021},null,{"$f":"SUM(M183:M189)","v":48400},null,7259.4199999999983]
[]
[null,null,null,"Aktieägartillskott",null,null,null,null,null,null,0,null,0,null,0]
[null,null,null,"Bokslutsdispositioner",null,null,null,null,{"$f":"MID($D$626,5,2)","v":""},null,0,null,0,null,0]
[null,null,null,"Resultat före skatt",null,null,null,null,null,null,{"$f":"SUM(K190:K193)","v":26021},null,{"$f":"SUM(M190:M193)","v":48400},null,7259.4199999999983]
[]
[null,null,null,"Skatt",null,null,null,null,null,null,0,null,0,null,0]
[null,null,null,"Fastighetsskatt",null,null,null,null,null,null,-2556,null,-2503]
[null,null,null,"Årets resultat",null,null,null,null,null,null,{"$f":"SUM(K194:K197)","v":23465},null,{"$f":"SUM(M194:M197)","v":45897},null,7259.4199999999983]
[]
[]
[null,null,null,"Balansräkning"]
[null,null,null,{"$f":"D$165","v":"Belopp i kr"},null,null,null,null,"Not",null,"2017-12-31",null,"2016-12-31",null,"2012-12-31"]
[null,null,null,"TILLGÅNGAR"]
[null,null,null,"Anläggningstillgångar"]
[null,null,null,"Immateriella anläggningstillgångar"]
[null,null,null,"Balanserade utgifter för utvecklingsarbeten"]
[null,null,null,"och liknande arbeten",null,null,null,null,{"$f":"MID($D$646,5,2)","v":""},null,0,null,0,null,0]
[null,null,null,"Hyresrätter och liknande rättigheter",null,null,null,null,{"$f":"MID($D$673,5,2)","v":""},null,0,null,0,null,0]
[null,null,null,null,null,null,null,null,null,null,{"$f":"SUM(K205:K208)","v":0},null,{"$f":"SUM(M205:M208)","v":0},null,0]
[null,null,null,"Materiella anläggningstillgångar"]
[null,null,null,"Byggnader och mark",null,null,null,null,{"$f":"MID($D$702,5,2)","v":"2"},null,7612325,null,7635825,null,7776825]
[null,null,null,"Maskiner och andra tekniska anläggningar",null,null,null,null,{"$f":"MID($D$749,5,2)","v":""},null,0,null,0,null,0]
[null,null,null,"Inventarier, verktyg och installationer",null,null,null,null,{"$f":"MID($D$789,5,2)","v":""},null,0,null,0,null,0]
[null,null,null,"Pågående nyanläggningar och förskott"]
[null,null,null,"avseende materiella anläggningstillgångar",null,null,null,null,{"$f":"MID($D$830,5,2)","v":"2"},null,0,null,0,null,0]
[null,null,null,null,null,null,null,null,null,null,{"$f":"SUM(K210:K215)","v":7612325},null,{"$f":"SUM(M210:M215)","v":7635825},null,7776825]
[null,null,null,"Finansiella anläggningstillgångar"]
[null,null,null,"Långfristiga värdepappersinnehav",null,null,null,null,{"$f":"MID($D$842,5,2)","v":""},null,0,null,0,null,0]
[null,null,null,"Andra långfristiga fordringar",null,null,null,null,{"$f":"MID($D$882,5,2)","v":""},null,0,null,0,null,0]
[null,null,null,null,null,null,null,null,null,null,{"$f":"SUM(K217:K219)","v":0},null,{"$f":"SUM(M217:M219)","v":0},null,0]
[null,null,null,"Summa anläggningstillgångar",null,null,null,null,null,null,{"$f":"SUM(K204:K220)/2","v":7612325},null,{"$f":"SUM(M204:M220)/2","v":7635825},null,7776825]
[null,null,null,"Omsättningstillgångar"]
[null,null,null,"Varulager m m"]
[null,null,null,"Råvaror och förnödenheter",null,null,null,null,null,null,0,null,0,null,0]
[null,null,null,"Varor under tillverkning",null,null,null,null,null,null,0,null,0,null,0]
[null,null,null,"Färdiga varor och handelsvaror",null,null,null,null,null,null,0,null,0,null,0]
[null,null,null,"Pågående arbete för annans räkning",null,null,null,null,{"$f":"MID($D$910,5,2)","v":""},null,0,null,0,null,0]
[null,null,null,"Förskott till leverantörer",null,null,null,null,null,null,0,null,0,null,0]
[null,null,null,null,null,null,null,null,null,null,{"$f":"SUM(K223:K228)","v":0},null,{"$f":"SUM(M223:M228)","v":0},null,0]
[null,null,null,"Kortfristiga fordringar"]
[null,null,null,"Förskott till leverantörer",null,null,null,null,null,null,0,null,0,null,0]
[null,null,null,"Avgifts fordringar",null,null,null,null,null,null,0,null,0,null,135576]
[null,null,null,"Skattefordringar",null,null,null,null,null,null,0,null,0,null,0]
[null,null,null,"Övriga fordringar",null,null,null,null,null,null,0,null,0,null,0]
[null,null,null,"Förutbetalda kostnader och upplupna intäkter",null,null,null,null,null,null,0,null,0,null,0]
[null,null,null,null,null,null,null,null,null,null,{"$f":"SUM(K230:K235)","v":0},null,{"$f":"SUM(M230:M235)","v":0},null,135576]
[]
[null,null,null,"Kortfristiga placeringar",null,null,null,null,{"$f":"MID($D$922,5,2)","v":"3"},null,0,null,0,null,0]
[]
[null,null,null,"Kassa och bank",null,null,null,null,null,null,29660,null,214591,null,100010]
[null,null,null,"Summa omsättningstillgångar",null,null,null,null,null,null,{"$f":"K232+K240","v":29660},null,214591,null,235586]
[null,null,null,"SUMMA TILLGÅNGAR",null,null,null,null,null,null,{"$f":"K221+K241","v":7641985},null,7850416,null,8012411]
[]
[]
[null,null,null,"Balansräkning"]
[null,null,null,{"$f":"D$165","v":"Belopp i kr"},null,null,null,null,"Not",null,{"$f":"K$202","v":"2017-12-31"},null,{"$f":"M$202","v":"2016-12-31"},null,"2012-12-31"]
[null,null,null,"EGET KAPITAL OCH SKULDER"]
[null,null,null,"Eget kapital",null,null,null,null,{"$f":"MID($D$937,5,2)","v":"4"}]
[null,null,null,"Bundet eget kapital"]
[null,null,null,"Medlemsinsatser",null,null,null,null,null,null,6900000,null,6900000,null,6900000]
[null,null,null,"Fond för yttre underhåll",null,null,null,null,null,null,103825,null,82675,null,0]
[null,null,null,null,null,null,null,null,null,null,{"$f":"SUM(K249:K251)","v":7003825},null,{"$f":"SUM(M249:M251)","v":6982675},null,6900000]
[null,null,null,"Fritt eget kapital"]
[null,null,null,"Överkursfond"]
[null,null,null,"Fond för verkligt värde"]
[null,null,null,"Balanserad vinst eller förlust",null,null,null,null,null,null,85566,null,60819,null,-44170]
[null,null,null,"Årets resultat",null,null,null,null,null,null,{"$f":"K198","v":23465},null,45897,null,7259.4199999999983]
[null,null,null,null,null,null,null,null,null,null,{"$f":"SUM(K253:K257)","v":109031},null,{"$f":"SUM(M253:M257)","v":106716},null,-36910.58]
[null,null,null,null,null,null,null,null,null,null,{"$f":"K252+K258","v":7112856},null,{"$f":"M252+M258","v":7089391},null,6863089.4199999999]
[]
[null,null,null,"Obeskattade reserver",null,null,null,null,{"$f":"MID($D$970,5,2)","v":""}]
[null,null,null,"Ackumulerade avskrivningar utöver plan",null,null,null,null,{"$f":"MID($D$994,5,2)","v":""},null,0,null,0,null,0]
[null,null,null,"Periodiseringsfonder",null,null,null,null,{"$f":"MID($D$1007,5,2)","v":""},null,0,null,0,null,0]
[null,null,null,"Övriga obeskattade reserver [var för sig]",null,null,null,null,null,null,0,null,0,null,0]
[null,null,null,null,null,null,null,null,null,null,{"$f":"SUM(K261:K264)","v":0},null,{"$f":"SUM(M261:M264)","v":0},null,0]
[null,null,null,"Avsättningar"]
[null,null,null,"Avsättningar för pensioner och"]
[null,null,null,"liknande förpliktelser",null,null,null,null,null,null,0,null,0,null,0]
[null,null,null,"Övriga avsättningar",null,null,null,null,null,null,0,null,0,null,0]
[null,null,null,null,null,null,null,null,null,null,{"$f":"SUM(K266:K269)","v":0},null,{"$f":"SUM(M266:M269)","v":0},null,0]
[]
[null,null,null,"Långfristiga skulder"]
[null,null,null,"Skulder till kreditinstitut",null,null,null,null,{"$f":"IF(MID($D$1043,5,2)=\"\",MID($D$1032,5,2),IF(MID($D$1032,5,2)=\"\",MID($D$1043,5,2),MID($D$1032,5,2)&+\",\"&+MID($D$1043,5,2)))","v":""},null,450000,null,700000,null,1000000]
[null,null,null,"Byggnadskreditiv",null,null,null,null,{"$f":"MID($D$1054,5,2)","v":""},null,0,null,0,null,0]
[null,null,null,null,null,null,null,null,null,null,{"$f":"SUM(K272:K274)","v":450000},null,{"$f":"SUM(M272:M274)","v":700000},null,1000000]
[null,null,null,"Kortfristiga skulder"]
[null,null,null,"Skulder till kreditinstitut",null,null,null,null,{"$f":"MID($D$1043,5,2)","v":""},null,0,null,0,null,0]
[null,null,null,"Checkräkningskredit",null,null,null,null,{"$f":"MID($D$1021,5,2)","v":""},null,0,null,0,null,0]
[null,null,null,"Pågående arbete för annans räkning",null,null,null,null,{"$f":"MID($D$910,5,2)","v":""},null,0,null,0,null,0]
[null,null,null,"Fakturerad men ej upparbetad intäkt",null,null,null,null,null,null,0,null,0,null,0]
[null,null,null,"Förskott från kunder",null,null,null,null,null,null,0,null,0,null,0]
[null,null,null,"Leverantörskulder",null,null,null,null,null,null,0,null,0,null,0]
[null,null,null,"Skatteskulder",null,null,null,null,null,null,0,null,0,null,0]
[null,null,null,"Övriga skulder",null,null,null,null,3,null,68291,null,43358,null,10038]
[null,null,null,"Upplupna kostnader och förutbetalda intäkter",null,null,null,null,5,null,10838,null,17667,null,139284]
[null,null,null,null,null,null,null,null,null,null,{"$f":"SUM(K276:K285)","v":79129},null,{"$f":"SUM(M276:M285)","v":61025},null,149322]
[null,null,null,"SUMMA EGET KAPITAL OCH SKULDER",null,null,null,null,null,null,{"$f":"K259+SUM(K261:K286)/2","v":7641985},null,{"$f":"M259+SUM(M261:M286)/2","v":7850416},null,8012411.4199999999]
[null,null,null,null,null,null,null,null,null,null,{"$f":"ROUND(K242-K287,0)","v":0},null,{"$f":"ROUND(M242-M287,0)","v":0},null,0]
[]
[null,null,null,"Ställda säkerheter och ansvarsförbindelser"]
[null,null,null,{"$f":"D$165","v":"Belopp i kr"},null,null,null,null,null,null,{"$f":"K$202","v":"2017-12-31"},null,{"$f":"M$202","v":"2016-12-31"},null,"2012-12-31"]
[null,null,null,"Ställda säkerheter",null,null,null,null,null,null,{"$f":"IF(K305=0,\"Inga\",\"\")","v":""},null,{"$f":"IF(M305=0,\"Inga\",\"\")","v":""},null,""]
[null,null,null,"För egna skulder och avsättningar",null,null,null,null,null,null,{"$f":"IF(K292=\"Inga\",\"\",IF(K298=0,\"Inga\",\"\"))","v":""},null,{"$f":"IF(M292=\"Inga\",\"\",IF(M298=0,\"Inga\",\"\"))","v":""},null,""]
[null,null,null,"Fastighetsinteckningar",null,null,null,null,null,null,5950000,null,5950000,null,5950000]
[null,"w",null,"Företagsinteckningar",null,null,null,null,null,null,0,null,0,null,0]
[null,"w",null,"Tillgångar med äganderättsförbehåll",null,null,null,null,null,null,0,null,0,null,0]
[null,null,null,"Övriga [var för sig]",null,null,null,null,null,null,0,null,0,null,0]
[null,null,null,null,null,null,null,null,null,null,{"$f":"SUM(K294:K297)","v":5950000},null,{"$f":"SUM(M294:M297)","v":5950000},null,5950000]
[]
[null,null,null,"Övriga ställda panter och säkerheter",null,null,null,null,null,null,{"$f":"IF(K292=\"Inga\",\"\",IF(K304=0,\"Inga\",\"\"))","v":"Inga"},null,{"$f":"IF(M292=\"Inga\",\"\",IF(M304=0,\"Inga\",\"\"))","v":"Inga"},null,"Inga"]
[null,null,null,"Fastighetsinteckningar",null,null,null,null,null,null,0,null,0,null,0]
[null,"w",null,"Företagsinteckningar",null,null,null,null,null,null,0,null,0,null,0]
[null,null,null,"Övriga [var för sig]",null,null,null,null,null,null,0,null,0,null,0]
[null,null,null,null,null,null,null,null,null,null,{"$f":"SUM(K301:K303)","v":0},null,{"$f":"SUM(M301:M303)","v":0},null,0]
[null,null,null,"Summa ställda säkerheter",null,null,null,null,null,null,{"$f":"K298+K304","v":5950000},null,{"$f":"M298+M304","v":5950000},null,5950000]
[]
[null,null,null,"Ansvarsförbindelser",null,null,null,null,null,null,{"$f":"IF(K313=0,\"Inga\",\"\")","v":"Inga"},null,{"$f":"IF(M313=0,\"Inga\",\"\")","v":"Inga"},null,"Inga"]
[null,null,null,"Pensionsförpliktelser utöver vad upptagits"]
[null,null,null,"bland skulder eller avsättningar",null,null,null,null,null,null,0,null,0,null,0]
[null,"w",null,"Borgensförbindelser",null,null,null,null,null,null,0,null,0,null,0]
[null,"w",null,"Överlåtna factoringfordringar",null,null,null,null,null,null,0,null,0,null,0]
[null,null,null,"Övriga ansvarsförbindelser [var för sig]",null,null,null,null,null,null,0,null,0,null,0]
[]
[]
[]
[null,null,null,"Noter med redovisningsprinciper och bokslutskommentarer"]
[null,null,null,{"$f":"+D$165&+\" om inget annat anges\"","v":"Belopp i kr om inget annat anges"}]
[]
[null,null,null,"Allmänna redovisningsprinciper"]
[null,null,null,"Årsredovisningen har upprättats i enlighet med Årsredovisningslagen och Bokförings-"]
[null,null,null,"nämndens allmänna råd. "]
[]
[null,null,null,"Värderingsprinciper m m"]
[null,null,null,"Tillgångar, avsättningar och skulder har värderats till anskaffningsvärden om inget annat"]
[null,null,null,"anges nedan."]
[]
[null,null,null,"Redovisning av /övriga/ intäkter"]
[null,null,null,"[Enligt BFNAR 2003:3 ska en beskrivning lämnas om de principer som använts för intäktsredovisningen och vilka metoder"]
[null,null,null,"som använts för att fastställa färdigställandegraden för pågående tjänsteuppdrag. Exempelvis  kan skrivningen vara: ]"]
[null,null,null,"Intäktsredovisning sker i enlighet med BFNAR 2003:3 Intäkter."]
[null,null,null,"Som inkomst redovisar bolaget det verkliga värdet av vad som erhållits eller kommer att "]
[null,null,null,"erhållas. Bolaget redovisar därför inkomst till nominellt värde (fakturabelopp) om bolaget"]
[null,null,null,"får ersättningen i likvida medel direkt vid leverans. Avdrag görs för lämnade rabatter."]
[null,null,null,"Inkomsten från bolagets försäljning av varor redovisas som intäkt när följande villkor är"]
[null,null,null,"uppfyllda; de väsentliga risker och förmåner som är förknippade med varornas ägande har"]
[null,null,null,"överförts till köparen, bolaget behåller inte något engagemang i den löpande förvaltningen"]
[null,null,null,"och utövar inte heller någon reell kontroll över de varor som sålts, inkomsten kan"]
[null,null,null,"beräknas på ett tillförlitligt sätt, det är sannolikt att de ekonomiska fördelar som bolaget"]
[null,null,null,"ska få av transaktionen kommer att tillfalla bolaget , och de utgifter som uppkommit eller"]
[null,null,null,"som förväntas uppkomma till följd av transaktionen kan beräknas på ett tillförlitligt sätt. "]
[]
[null,null,null,"Ränta, royalty och utdelning redovisas som intäkt när det är sannolikt att bolaget kommer"]
[null,null,null,"att få de ekonomiska fördelar som är förknippade med transaktionen samt att inkomsten"]
[null,null,null,"kan beräknas på ett tillförlitligt sätt. Ränteintäkten redovisas med tillämpning av den"]
[null,null,null,"räntesats som ger en jämn avkastning för tillgången i fråga. Royaltyintäkten periodiseras i"]
[null,null,null,"enlighet med den aktuella överenskommelsens ekonomiska innebörd. Utdelningsintäkt"]
[null,null,null,"redovisas när aktieägarens rätt att få utdelning bedöms som säker."]
[]
[]
[null,null,null,"Varulager"]
[null,null,null,"Varulagret, värderat enligt Bokföringsnämndens allmänna råd BFNAR 2000:3, är upptaget"]
[null,null,null,"till det lägsta av anskaffningsvärdet enligt den s k först-in först-ut principen respektive"]
[null,null,null,"verkligt värde. Inkuransrisker har därvid beaktats. I egentillverkade halv- och helfabrikat"]
[null,null,null,"består anskaffningsvärdet av direkta tillverkningskostnader och skälig andel av indirekta"]
[null,"w",null,"kostnader. Vid värdering har hänsyn tagits till normalt kapacitetsutnyttjande."]
[]
[null,null,null,"Pågående arbeten "]
[null,"w",null,"Om huvudregeln avseende redovisning av uppdrag på löpande räkning tillämpas enligt BFNAR 2003:3.]"]
[null,null,null,"Bolaget vinstavräknar utförda tjänsteuppdrag på löpande räkning i den takt arbetet utförs, i"]
[null,null,null,"enlighet med BFNs huvudregel i BFNAR 2003:3. Pågående, ej fakturerade tjänsteuppdrag"]
[null,null,null,"tas i balansräkningen upp till det beräknade faktureringsvärdet av utfört arbete."]
[null,"w",null,"[Om alternativregeln avseende redovisning av uppdrag på löpande räkning tillämpas enligt BFNAR 2003:3."]
[null,null,null,"Bolaget redovisar utförda tjänsteuppdrag på löpande räkning i enlighet med BFNs alternativ-"]
[null,null,null,"regel i BFNAR 2003:3. Det innebär att intäkten redovisas i den takt som utförda tjänster "]
[null,null,null,"faktureras och utgifterna redovisas som kostnad när de uppkommer. Pågående, ej"]
[null,null,null,"fakturerade tjänsteuppdrag, tas inte upp som tillgång i balansräkningen."]
[null,"w",null,"[Om huvudregeln avseende redovisning av uppdrag med fast pris tillämpas enligt BFNAR 2003:3."]
[null,null,null,"Bolaget vinstavräknar, i enlighet med BFNs huvudregel i BFNAR 2003:3, utförda tjänsteupp-"]
[null,null,null,"drag med fast pris i takt med att arbetet utförs, sk successiv vinstavräkning. Vid beräkning av "]
[null,null,null,"upparbetad vinst har färdigställandegraden beräknats som nedlagda utgifter per balansdagen"]
[null,null,null,"i relation till de totalt beräknade utgifterna för att fullgöra uppdraget."]
[null,"w",null,"[Om alternativregeln avseende redovisning av uppdrag med fast pris tillämpas enligt BFNAR 2003:3."]
[null,null,null,"Bolaget vinstavräknar, i enlighet med BFNs alternativregel i BFNAR 2003:3, utförda tjänste-"]
[null,null,null,"uppdrag med fast pris när arbetet är avslutat. Pågående, ej fakturerade tjänsteuppdrag, värde-"]
[null,null,null,"ras i balansräkningen till direkt nedlagda utgifter med tillägg för andelen av indirekta utgifter"]
[null,null,null,"samt med avdrag för fakturerade dellikvider."]
[]
[null,null,null,"Fordringar"]
[null,null,null,"Fordringar har efter individuell värdering upptagits till belopp varmed de beräknas inflyta."]
[]
[null,null,null,"Förenings fond för yttre underhåll"]
[null,null,null,"Avsättning till föreningens fond för yttre underhåll ingår i föreslagen vinstdisposiotion."]
[]
[null,null,null,"Arvoden och löner"]
[null,null,null,"Föreningen har under året inte haft några anställda. Något arvode har inte utgått till styrelsen."]
[]
[]
[null,null,null,"Fordringar och skulder i utländsk valuta"]
[null,"w",null,"[ Om tillämpligt ex: ]"]
[null,null,null,"Fordringar och skulder i utländsk valuta har omräknats till balansdagens kurs. Kursdifferenser"]
[null,null,null,"på rörelsefordringar och rörelseskulder ingår i rörelseresultatet, medan differenser på finansi-"]
[null,null,null,"ella fordringar och skulder redovisas bland finansiella poster."]
[]
[null,null,null,"Finansiella instrument "]
[null,null,null,"[Nedanstående avser de företag som tillämpar reglerna i ÅRL 4 kap 14a-e §§ dvs värderar finansiella instrument till verkligt"]
[null,null,null,"värde. I vissa fall ska värdeförändringar av det verkliga värdet redovisas direkt mot fond för verkligt värde i eget kapital, "]
[null,null,null,"se ÅRL 4 kap14d §. I ÅRL 4 kap 14a-b framgår vilka finsiella instrument som får värderas till verkligt värde.]"]
[null,null,null,"Derivatinstrument utgörs bl.a av terminskontrakt, optioner och swappar som utnyttjas för att "]
[null,null,null,"täcka risker för valutkursförändringar och för exponering av ränterisker. Derivatinstrumentet"]
[null,null,null,"klassificeras antingen som säkringsinstrument eller som innehav för handelsändamål och"]
[null,null,null,"hänförs till handelslagret. Derivatinstrument som innehas för handelsändamål värderas till "]
[null,null,null,"verkligt värde. Vinst respektive förlust vid förändring av verkligt värde redovisas i "]
[null,null,null,"resultaträkningen under finansiella poster."]
[null,null,null,"Andra finansiella instrument (ange vilka) värderas till verkligt värde. Värdeförändringarna "]
[null,null,null,"redovisas i resultaträkningen under posten \"Resultat från övriga värdepapper och fordringar"]
[null,null,null,"som är anläggningstillgångar\". (Koppla balansräkningspost till korrekt resultaträkningspost)"]
[]
[null,null,null,"Avskrivningsprinciper för anläggningstillgångar"]
[null,null,null,"På grund av ändrade redovisningsregler har den tidigare avskrivningsplanen omarbetats."]
[null,null,null,"Byggnaden skrivs numera av enligt K2-principen med 0,33% av anskaffningsvärdet enligt anvisningar från"]
[null,null,null,"föreningen Bostadsrätterna."]
[]
[null,null,null,"Immateriella anläggningstillgångar"]
[null,null,null,"Balanserade utgifter för utvecklingsarbeten och likn",null,null,null,null,null,null,"X år",null,"X år"]
[null,null,null,"Dataprogram",null,null,null,null,null,null,"X år",null,"X år"]
[null,null,null,"Hyresrätter",null,null,null,null,null,null,"X år",null,"X år"]
[]
[null,null,null,"Markanläggningar ",null,null,null,null,null,null,"X år",null,"X år"]
[null,null,null,"Maskiner och andra tekniska anläggningar",null,null,null,null,null,null,"X år",null,"X år"]
[null,null,null,"Inventarier, verktyg och installationer",null,null,null,null,null,null,"X år",null,"X år"]
[]
[null,"w",null,"[ Om avskrivningstid > 5 år tillämpas på immateriell tillgång skall motiven för detta anges. ]"]
[null,null,null,"Skillnaden mellan ovan nämnda avskrivningar och skattemässigt gjorda avskrivningar redo-"]
[null,null,null,"visas som ackumulerade överavskrivningar, vilka ingår i obeskattade reserver."]
[]
[null,null,null,"Skatt"]
[null,null,null,"Företaget tillämpar Bokföringsnämndens allmänna råd BFNAR 2001:1 Inkomstskatter."]
[]
[null,null,null,"Skatter redovisas i resultaträkningen utom då underliggande transaktion redovisas direkt mot"]
[null,null,null,"eget kapital varvid tillhörande skatteeffekt redovisas i eget kapital. Aktuell skatt är skatt som"]
[null,null,null,"skall betalas eller erhållas avseende aktuellt år. Hit hör även justering av aktuell skatt hänförlig"]
[null,null,null,"till tidigare perioder. "]
[]
[null,"w",null,"[ I särskilda fall kan ÅRLs krav på att balansräkning, resultaträkning och noter ska ge en rättvisande bild av bolagets"]
[null,"w",null,"ställning och resultat medföra att även mindre företag måste lämna uppgifter om uppskjuten skatt. Företaget ska i så"]
[null,"w",null,"fall lämna upplysningar om såväl uppskjutna skattefordringar som uppskjutna skatteskulder. Uppgifterna ska lämnas"]
[null,"w",null,"brutto.]"]
[]
[null,null,null,"Byte av redovisningsprinciper"]
[null,null,null,"[ De beloppsuppgifter som lämnas i årsredovisningen måste vara jämförbara. Om ett företag byter"]
[null,null,null,"redovisningsprincip uppkommer problem ur jämförbarhetssynpunkt. Har företaget bytt redovisningsprincip skall man"]
[null,null,null,"upplysa om ändringen och om motiven för detta. Byter man princip med retroaktiv verkan skall man upplysa om"]
[null,null,null,"effekten på berörd resultat- och balanspost avseende jämförelseåret. Effekten skall även framgå i noten till eget"]
[null,null,null,"kapital.] "]
[null,null,null,"[Löpande text:]"]
[]
[]
[null,null,null,"Avvikelser från grundläggande principer, allmänna råd eller rekommendationer"]
[null,null,null,"[ Kommentar ... ]"]
[null,"w",null,"[ Avviker man från vad som följer av allmänna råd, uttalanden eller rekommendationer från normgivande organ, skall"]
[null,"w",null,"man upplysa om detta och om skälen för avvikelsen. Observera att det inte räcker med att hänvisa till kravet på"]
[null,"w",null,"rättvisande bild. ]"]
[]
[null,null,null,"Not","Anställda och personalkostnader"]
[null,null,null,null,null,null,null,null,null,null,{"$f":"K$164","v":"2017-01-01"},null,{"$f":"M$164","v":"2016-01-01"},null,"2012-01-01"]
[null,null,null,null,null,null,null,null,null,null,{"$f":"K$165","v":"- 2017-12-31"},null,{"$f":"M$165","v":"- 2016-12-31"},null,"- 2012-12-31"]
[]
[null,null,null,"Medelantalet anställda",null,null,null,null,null,null,0,null,0,null,0]
[null,null,null,"Varav män",null,null,null,null,null,null,0,null,0,null,0]
[]
[null,null,null,"Löner, andra ersättningar och sociala kostnader"]
[]
[null,null,null,"Styrelse och VD",null,null,null,null,null,null,0,null,0,null,0]
[null,null,null,"(varav tantiem)",null,null,null,null,null,null,0,null,0,null,0]
[null,null,null,"Övriga anställda",null,null,null,null,null,null,0,null,0,null,0]
[null,null,null,"(varav vinstandelar)",null,null,null,null,null,null,{"$f":"K462+K464","v":0},null,{"$f":"M462+M464","v":0},null,0]
[null,null,null,"Summa",null,null,null,null,null,null,{"$f":"K463+K465","v":0},null,{"$f":"M463+M465","v":0},null,0]
[null,null,null,"Sociala kostnader",null,null,null,null,null,null,0,null,0,null,0]
[null,null,null,"(varav pensionskostnader)",null,null,null,null,null,null,0,null,0,null,0]
[]
[null,"w",null,"[ Beloppsuppgift avseende styrelse och VD skall inkludera ersättning till tidigare styrelse och VD under räkenskapsåret. ]"]
[null,null,null,"Av bolagets pensionskostnader avser xxx xxx (f.å. xxx xxx) gruppen styrelse och VD."]
[null,null,null,"Bolagets utestående pensionsförpliktelser till dessa uppgår till  xxx xxx (f.å. xxx xxx)."]
[null,null,null,"Löner och ersättningar avser endast personal i Sverige."]
[]
[]
[null,null,null,"Redovisning av könsfördelning i företagsledningar",null,null,null,null,null,null,{"$f":"K$202","v":41638},null,{"$f":"M$202","v":41273},null,"2012-12-31"]
[null,null,null,null,null,null,null,null,null,null,"Andel kvinnor",null,"Andel kvinnor",null,"Andel kvinnor",null,null,{"$f":"T$267","v":0}]
[]
[]
[null,null,null,"Styrelsen",null,null,null,null,null,null,0,null,0,null,0]
[null,null,null,"Övriga ledande befattningshavare",null,null,null,null,null,null,0,null,0,null,0]
[]
[null,"w",null,"[Enligt ÅRL 5 kap 18b § ska tilläggsupplysning lämnas avseende fördelningen mellan kvinnor och män bland"]
[null,"w",null,"styrelseledamöter, VD och andra personer i företagets ledning. Observera att företag i vilka antalet anställda under de"]
[null,"w",null,"senaste två räkenskapsåren i medeltal uppgått till högst tio behöver inte lämna uppgifter om könsfördelning i"]
[null,"w",null,"företagsledningen. Redovisning skall göras separat för styrelseledamöter och övriga befattningshavare. Bland övriga"]
[null,"w",null,"befattningshavare inkluderas även VD. Om VD eller någon annan person i företagets ledning även ingår i styrelsen"]
[null,"w",null,"skall denne räknas in både i styrelsen och i gruppen övriga befattningshavare.  Andra personer i företagets ledning"]
[null,"w",null,"definieras inte särskilt, men i propositionen görs jämförelse med motsvarande begrepp som finns i ÅRL 5:25 om"]
[null,"w",null,"upplysning om avtal om avgångs- vederlag för personer i företagets ledning. Vidare framgår i författnings-"]
[null,"w",null,"kommentarerna att de som främst avses är personer som ingår i ledningsgrupper och liknande organ och chefer som"]
[null,"w",null,"är direkt underställda VD. Suppleanter till styrelseledamöter och vice VD omfattas inte av redovisningskravet. Företag"]
[null,"w",null,"som under de två senaste åren har haft i medeltal högst 10 anställda undantas från redovisningskravet.]"]
[null,"w"]
[null,"w",null,"[Löpande text]"]
[null,"w"]
[null,null,null,"[Om lönerna ej fördelas per land då de endast avser Sverige.]"]
[null,null,null,"Löner och ersättningar avser endast personal i Sverige. ",null,null,null,null,null,null,null,{"$f":"IF(L$219=\"200x-xx-xx\",L$253,L$219)","v":"1904-01-01"}]
[]
[null,null,null,"Löner och andra ersättningar",null,null,null,null,null,null,null,{"$f":"IF(L$219=\"200x-xx-xx\",L$253,L$219)","v":"1904-01-01"}]
[null,null,null,"fördelade per land"]
[]
[null,null,null,"Sverige",null,null,null,null,null,null,{"$f":"K508-SUM(K505:K508)","v":0},null,{"$f":"M508-SUM(M505:M508)","v":0},null,0]
[null,null,null,"Land/grupp av länder",null,null,null,null,null,null,0,null,0,null,0]
[null,null,null,"Land/grupp av länder",null,null,null,null,null,null,0,null,0,null,0]
[null,null,null,"Land/grupp av länder",null,null,null,null,null,null,0,null,0,null,0]
[null,null,null,"Totalt",null,null,null,null,null,null,0,null,0,null,0]
[]
[]
[null,null,null,"Avgångsvederlag"]
[null,null,null,"Kommentar ... "]
[null,null,null,"[ Krav enligt ÅRL 5:25, FAR SRS rekommendation RedR 1. Om företaget har träffat avtal om avgångsvederlag eller"]
[null,null,null,"liknande förmåner till styrelseledamöter, verkställande direktören och andra personer i företagets ledning, skall"]
[null,null,null,"uppgift lämnas om avtalen och om de väsentligaste villkoren i avtalen. ]"]
[]
[null,null,null,"Lån till ledande befattningshavare"]
[null,null,null,"Kommentar ... "]
[null,null,null,"[ Krav enligt ÅRL 5:12, FAR SRS rekommendation RedR 1. Om företaget lämnat lån till ledande befattningshavare"]
[null,null,null,"skall uppgifter lämnas här. Av uppgifterna skall framgå belopp, ränte- och amorteringsvillkor m m. ]"]
[]
[null,null,null,"Sjukfrånvaro"]
[null,"w",null,"[Enligt ÅRL 5 kap. 18a§ gäller följande: \"uppgift skall lämnas om de anställdas frånvaro på grund av sjukdom under"]
[null,"w",null,"räkenskapsåret. Den totala sjukfrånvaron skall anges i procent av de anställdas sammanlagda ordinarie arbetstid."]
[null,"w",null,"Uppgift skall också lämnas om:"]
[null,"w",null,"- Den andel av sjukfrånvaron som avser frånvaro under en sammanhängande tid av 60 dagar eller mer."]
[null,"w",null,"- Sjukfrånvaron för kvinnor respektive män."]
[null,"w",null,"- Sjukfrånvaron bland anställda i åldersintervallen: 29 år och yngre, 30-49 år och 50 år och äldre."]
[null,"w"]
[null,"w",null,"Sjukfrånvaron för varje grupp skall anges i procent av gruppens sammanlagda ordinarie arbetstid. Sådan uppgift ska"]
[null,"w",null,"inte lämnas om antalet anställda i gruppen är högst tio eller om uppgiften kan hänföras till en enskild individ."]
[null,"w",null,"Bestämmelserna ovan gäller inte för anställda utomlands eller företag som under de två senaste räkenskapsåren haft"]
[null,"w",null,"i medeltal högst tio anställda."]
[null,"w",null,"Enligt FAR SRS tolkning avses med sammanlagd ordinarie arbetstid den tillgängliga arbetstiden, i detta inräknas inte "]
[null,"w",null,"tjänstledighet på hel- eller deltid, övertid eller tid där den anställde har sjukersättning som inte är tidsbegränsad.]"]
[null,"w"]
[null,"w"]
[null,"w"]
[null,"w"]
[null,null,null,"[Exempel på hur sjukfrånvaron kan redovisas:]"]
[null,null,null,null,null,null,null,null,null,null,{"$f":"K$164","v":"2017-01-01"},null,{"$f":"M$164","v":"2016-01-01"},null,"2012-01-01"]
[null,null,null,null,null,null,null,null,null,null,{"$f":"K$165","v":"- 2017-12-31"},null,{"$f":"M$165","v":"- 2016-12-31"},null,"- 2012-12-31"]
[]
[null,null,null,"Total sjukfrånvaro som en andel av ordinarie arbetstid",null,null,null,null,null,null,0,null,0,null,0]
[]
[null,null,null,"Andel av den totala sjukfrånvaron som avser samman-"]
[null,null,null,"hängande sjukfrånvaro på 60 dagar eller mer",null,null,null,null,null,null,0,null,0,null,0]
[null,"w",null,"[Andel långtidssjukfrånvaro (samtliga timmar i sjukfrånvaron på minst 60 dagar) i relation till den sammanlagda"]
[null,"w",null,"sjukfrånvaron]"]
[null,null,null,"Sjukfrånvaro som en andel av varje grupps ordinarie arbetstid:"]
[]
[null,null,null,"Sjukfrånvaron fördelad efter kön:"]
[]
[null,null,null,"Män",null,null,null,null,null,null,0,null,0,null,0]
[null,"w",null,"[Sammanlagda sjukfrånvaron för män) * 100/sammanlagd ordinarie arbetstid för män = X%]"]
[]
[null,null,null,"Kvinnor",null,null,null,null,null,null,0,null,0,null,0]
[null,"w",null,"[Sammanlagda sjukfrånvaron för kvinnor) * 100/sammanlagd ordinarie arbetstid för kvinnor = X%]"]
[]
[null,null,null,"Sjukfrånvaron fördelad efter ålderskategori:"]
[]
[null,null,null,"29 år eller yngre",null,null,null,null,null,null,0,null,0,null,0]
[]
[null,null,null,"30-49 år",null,null,null,null,null,null,0,null,0,null,0]
[]
[null,null,null,"50 år eller äldre",null,null,null,null,null,null,0,null,0,null,0]
[]
[]
[null,null,null,"Not 1","Driftskostnader"]
[null,null,null,null,null,null,null,null,null,null,{"$f":"K$164","v":"2017-01-01"},null,{"$f":"M$164","v":"2016-01-01"},null,"2012-01-01"]
[null,null,null,null,null,null,null,null,null,null,{"$f":"K$165","v":"- 2017-12-31"},null,{"$f":"M$165","v":"- 2016-12-31"},null,"- 2012-12-31"]
[]
[]
[null,null,null,"El lgh A",null,null,null,null,null,null,17082,null,14554,null,32374]
[null,null,null,"Underhåll lgh A",null,null,null,null,null,null,188,null,11761]
[null,null,null,"IT-kostnader lgh A",null,null,null,null,null,null,2740,null,2412]
[null,null,null,null,null,null,null,null,null,null,{"$f":"SUM(K574:K576)","v":20010},null,{"$f":"SUM(M574:M576)","v":28727}]
[]
[null,null,null,"El lgh B",null,null,null,null,null,null,14351,null,13756]
[null,null,null,"Underhåll lgh B",null,null,null,null,null,null,9966,null,441]
[null,null,null,"IT-kostnader lgh B",null,null,null,null,null,null,2740,null,2413]
[null,null,null,null,null,null,null,null,null,null,{"$f":"SUM(K579:K581)","v":27057},null,{"$f":"SUM(M579:M581)","v":16610}]
[]
[null,null,null,"Försäkring",null,null,null,null,null,null,4914,null,3385,null,8826]
[null,null,null,"Samfällighetsavgifter",null,null,null,null,null,null,34728,null,34640,null,31760]
[null,null,null,"Fastighetsskötsel / Underhåll",null,null,null,null,null,null,23799,null,null,null,17694]
[null,null,null,null,null,null,null,null,null,null,{"$f":"SUM(K584:K586)","v":63441},null,38025,null,90654]
[]
[null,null,null,"[ Kommentar ... ]"]
[null,null,null,"[ Med revisionsuppdrag avses granskning av årsredovisningen och bokföringen samt styrelsens"]
[null,null,null,"och verkställande direktörens förvaltning, övriga arbetsuppgifter som det ankommer på företagets"]
[null,null,null,"revisor att utföra samt rådgivning eller annat biträde som föranleds av iakttagelser vid sådan"]
[null,null,null,"granskning  eller genomförandet av sådana övriga arbetsuppgifter. Allt annat är andra uppdrag. Se"]
[null,null,null,"FAR SRS RedR 1 Årsredovisning i aktiebolag.]"]
[null,"w"]
[null,"w",null,"[ Vid byråval anges endast revisionsföretaget. Om endast en byrå företräder revisionen behöver revisorns namn ej"]
[null,"w",null,"anges. Andra uppdrag skall avse samtliga tillhandahållna tjänster utförda av revisionsföretaget eller bolag med"]
[null,"w",null,"koncerntillhörig- het. Vid bristfällig periodisering av arvoden kan överenskommet arvode eller på räkenskapsåret"]
[null,"w",null,"belöpande arvoden anges i stället för kostnadsförda arvoden. ]"]
[]
[null,null,null,"Not ","Leasingavgifter avseende operationell leasing"]
[null,null,null,null,null,null,null,null,null,null,{"$f":"K$164","v":"2017-01-01"},null,{"$f":"M$164","v":"2016-01-01"},null,"2012-01-01"]
[null,null,null,null,null,null,null,null,null,null,{"$f":"K$165","v":"- 2017-12-31"},null,{"$f":"M$165","v":"- 2016-12-31"},null,"- 2012-12-31"]
[]
[null,null,null,"Tillgångar som innehas via operationella leasingavtal",null,null,null,null,null,null,{"$f":"IF(SUM(K606:K606)=0,\"Inga\",\"\")","v":"Inga"},null,{"$f":"IF(SUM(M606:M606)=0,\"Inga\",\"\")","v":"Inga"},null,"Inga"]
[null,null,null,"Räkenskapsårets leasingkostnader exklusive lokalhyror",null,null,null,null,null,null,0,null,0,null,0]
[]
[null,null,null,"[ Kommentar ...]"]
[null,"w",null,"[BFNAR 2000:4: Upplysning om väsentliga leasingavtal ska lämnas i förvaltningsberättelsen. För jämförelseåret bör"]
[null,"w",null,"åtminstone leasingkostnaden anges.]"]
[]
[null,null,null,"Not","Avskrivningar av materiella och immateriella anläggningstillgångar"]
[null,null,null,null,null,null,null,null,null,null,{"$f":"K$164","v":"2017-01-01"},null,{"$f":"M$164","v":"2016-01-01"},null,"2012-01-01"]
[null,null,null,null,null,null,null,null,null,null,{"$f":"K$165","v":"- 2017-12-31"},null,{"$f":"M$165","v":"- 2016-12-31"},null,"- 2012-12-31"]
[]
[null,null,null,"Balanserade utgifter för utvecklingsarbeten och likn",null,null,null,null,null,null,0,null,0,null,0]
[null,null,null,"Hyresrätter och liknande rättigheter",null,null,null,null,null,null,0,null,0,null,0]
[null,null,null,"Byggnader och mark",null,null,null,null,null,null,0,null,0,null,0]
[null,null,null,"Maskiner och andra tekniska anläggningar",null,null,null,null,null,null,0,null,0,null,0]
[null,null,null,"Inventarier, verktyg och installationer",null,null,null,null,null,null,{"$f":"K621-SUM(K615:INDEX(I:I,ROW()-1))","v":-23500},null,{"$f":"M621-SUM(M615:INDEX(K:K,ROW()-1))","v":-23500},null,-70500]
[null,null,null,null,null,null,null,null,null,null,{"$f":"K$181","v":-23500},null,{"$f":"M$181","v":-23500},null,-70500]
[]
[null,null,null,"[ Kommentar ... ]"]
[null,"w",null,"[ Här kan upplysning även lämnas om ev. nedskrivningar. ]"]
[]
[null,null,null,"Not",{"$f":"D$193","v":"Bokslutsdispositioner"}]
[null,null,null,null,null,null,null,null,null,null,{"$f":"K$164","v":"2017-01-01"},null,{"$f":"M$164","v":"2016-01-01"},null,"2012-01-01"]
[null,null,null,null,null,null,null,null,null,null,{"$f":"K$165","v":"- 2017-12-31"},null,{"$f":"M$165","v":"- 2016-12-31"},null,"- 2012-12-31"]
[]
[null,null,null,"Skillnad mellan bokförd avskrivning och"]
[null,null,null,"avskrivning enligt plan"]
[null,null,null,{"$f":"\"-  Balanserade utgifter för utvecklingsarbeten och likn\"","v":"-  Balanserade utgifter för utvecklingsarbeten och likn"},null,null,null,null,null,null,0,null,0,null,0]
[null,null,null,{"$f":"\"-  Hyresrätter och liknande rättigheter\"","v":"-  Hyresrätter och liknande rättigheter"},null,null,null,null,null,null,0,null,0,null,0]
[null,null,null,{"$f":"\"-  Byggnader och mark\"","v":"-  Byggnader och mark"},null,null,null,null,null,null,0,null,0,null,0]
[null,null,null,{"$f":"\"-  Maskiner och andra tekniska anläggningar\"","v":"-  Maskiner och andra tekniska anläggningar"},null,null,null,null,null,null,0,null,0,null,0]
[null,null,null,{"$f":"\"-  Inventarier, verktyg och installationer\"","v":"-  Inventarier, verktyg och installationer"},null,null,null,null,null,null,0,null,0,null,0]
[null,null,null,"Periodiseringsfond, årets avsättning",null,null,null,null,null,null,0,null,0,null,0]
[null,null,null,"Periodiseringsfond, årets återföring",null,null,null,null,null,null,0,null,0,null,0]
[null,null,null,"Övriga obeskattade reserver [var för sig], förändring",null,null,null,null,null,null,0,null,0,null,0]
[null,null,null,null,null,null,null,null,null,null,{"$f":"K$193","v":0},null,{"$f":"M$193","v":0},null,0]
[null,null,null,null,null,null,null,{"$f":"IF(ABS(M641)+ABS(#REF!)=0,\"\",\"Differens\")","v":{"$error":"#REF!"}},null,null,{"$f":"ROUND(K640-SUM(K629:INDEX(I:I,ROW()-2)),0)","v":0},null,{"$f":"ROUND(M640-SUM(M629:INDEX(K:K,ROW()-2)),0)","v":0},null,0]
[null,null,null,"[ Kommentar ... ]"]
[null,"w",null,"[ Om bokslutsdispositionerna är av väsentlig storlek ska de specificeras enl FAR SRSs rekommendation RedR1."]
[null,null,null,"Detta är etablerad praxis. ]"]
[null,null,null,null,null,null,null,null,null,null,{"$f":"ROUND(K$640-SUM(K$630:K$639),0)","v":0},null,{"$f":"ROUND(M$640-SUM(M$630:M$639),0)","v":0},null,0]
[null,null,null,"Not","Balanserade utgifter för utvecklingsarbeten och liknande arbeten"]
[null,null,null,null,null,null,null,null,null,null,{"$f":"K$202","v":41638},null,{"$f":"M$202","v":41273},null,"2012-12-31",null,null,null,null,null,null,null,"F.år"]
[]
[null,null,null,"Ackumulerade anskaffningsvärden"]
[null,null,null,{"$f":"IF(SUM(K650:L650)=SUM(K653:L653),\"Vid årets början och slut\",\"Vid årets början\")","v":{"$error":"#REF!"}},null,null,null,null,null,null,{"$f":"#REF!","v":{"$error":"#REF!"}},null,{"$f":"#REF!","v":{"$error":"#REF!"}},null,0]
[null,null,null,"Årets aktiveringar",null,null,null,null,null,null,0,null,0,null,0]
[null,null,null,"Avyttringar och utrangeringar",null,null,null,null,null,null,0,null,0,null,0]
[null,null,null,null,null,null,null,null,null,null,{"$f":"SUM(K649:K652)","v":{"$error":"#REF!"}},null,{"$f":"SUM(M649:M652)","v":{"$error":"#REF!"}},null,0]
[]
[null,null,null,"Ackumulerade avskrivningar enligt plan"]
[null,null,null,{"$f":"IF(SUM(K656:L656)=SUM(K661:L661),\"Vid årets början och slut\",\"Vid årets början\")","v":{"$error":"#REF!"}},null,null,null,null,null,null,{"$f":"#REF!","v":{"$error":"#REF!"}},null,{"$f":"#REF!","v":{"$error":"#REF!"}},null,0]
[null,null,null,"Avyttringar och utrangeringar",null,null,null,null,null,null,0,null,0,null,0]
[null,null,null,"Årets avskrivning enligt plan",null,null,null,null,null,null,{"$f":"-ABS(K$616)","v":0},null,{"$f":"-ABS(M$616)","v":0},null,0]
[null,null,null,null,null,null,null,null,null,null,{"$f":"SUM(K656:K658)","v":{"$error":"#REF!"}},null,{"$f":"SUM(M656:M658)","v":{"$error":"#REF!"}},null,0]
[]
[null,null,null,"Ackumulerade nedskrivningar"]
[null,null,null,{"$f":"IF(SUM(K662:L662)=SUM(K667:L667),\"Vid årets början och slut\",\"Vid årets början\")","v":{"$error":"#REF!"}},null,null,null,null,null,null,{"$f":"#REF!","v":{"$error":"#REF!"}},null,{"$f":"#REF!","v":{"$error":"#REF!"}},null,0]
[null,null,null,"Avyttringar och utrangeringar",null,null,null,null,null,null,0,null,0,null,0]
[null,null,null,"Återförda nedskrivningar",null,null,null,null,null,null,0,null,0,null,0]
[null,null,null,"Omklassificeringar mm",null,null,null,null,null,null,0,null,0,null,0]
[null,null,null,"Årets nedskrivningar (anskaffningsvärde)",null,null,null,null,null,null,0,null,0,null,0]
[null,null,null,null,null,null,null,null,null,null,{"$f":"SUM(K661:K666)","v":{"$error":"#REF!"}},null,{"$f":"SUM(M661:M666)","v":{"$error":"#REF!"}},null,0]
[null,null,null,"Redovisat värde vid årets slut",null,null,null,null,null,null,{"$f":"K$207","v":0},null,{"$f":"M$207","v":0},null,0]
[null,null,null,null,null,null,null,{"$f":"IF(ABS(M669)+ABS(#REF!)=0,\"\",\"Differens\")","v":{"$error":"#REF!"}},null,null,{"$f":"ROUND(K$668-SUM(K$649:K$667)/2,0)","v":{"$error":"#REF!"}},null,{"$f":"ROUND(M$668-SUM(M$649:M$667)/2,0)","v":{"$error":"#REF!"}},null,0]
[null,null,null,"[ Kommentar ... ]"]
[null,"w",null,"[ Krav enl ÅRL 5:3, FAR SRSs rekommendation RedR1 avsnitt 6 p K. ]"]
[]
[null,null,null,"Not",{"$f":"$D$208","v":"Hyresrätter och liknande rättigheter"}]
[null,null,null,null,null,null,null,null,null,null,{"$f":"K$202","v":41638},null,{"$f":"M$202","v":41273},null,"2012-12-31",null,null,null,null,null,null,null,"F.år"]
[]
[null,null,null,"Ackumulerade anskaffningsvärden"]
[null,null,null,{"$f":"IF(SUM(K677:L677)=SUM(K680:L680),\"Vid årets början och slut\",\"Vid årets början\")","v":{"$error":"#REF!"}},null,null,null,null,null,null,{"$f":"#REF!","v":{"$error":"#REF!"}},null,{"$f":"#REF!","v":{"$error":"#REF!"}},null,0]
[null,null,null,"Nyanskaffningar",null,null,null,null,null,null,0,null,0,null,0]
[null,null,null,"Avyttringar och utrangeringar",null,null,null,null,null,null,0,null,0,null,0]
[null,null,null,null,null,null,null,null,null,null,{"$f":"SUM(K676:K679)","v":{"$error":"#REF!"}},null,{"$f":"SUM(M676:M679)","v":{"$error":"#REF!"}},null,0]
[]
[null,null,null,"Ackumulerade avskrivningar enligt plan"]
[null,null,null,{"$f":"IF(SUM(K683:L683)=SUM(K686:L686),\"Vid årets början och slut\",\"Vid årets början\")","v":{"$error":"#REF!"}},null,null,null,null,null,null,{"$f":"#REF!","v":{"$error":"#REF!"}},null,{"$f":"#REF!","v":{"$error":"#REF!"}},null,0]
[null,null,null,"Avyttringar och utrangeringar",null,null,null,null,null,null,0,null,0,null,0]
[null,null,null,"Årets avskrivning enligt plan",null,null,null,null,null,null,{"$f":"-ABS(K$617)","v":0},null,{"$f":"-ABS(M$617)","v":0},null,0]
[null,null,null,null,null,null,null,null,null,null,{"$f":"SUM(K682:K685)","v":{"$error":"#REF!"}},null,{"$f":"SUM(M682:M685)","v":{"$error":"#REF!"}},null,0]
[]
[null,null,null,"Ackumulerade nedskrivningar"]
[null,null,null,{"$f":"IF(SUM(K689:L689)=SUM(K694:L694),\"Vid årets början och slut\",\"Vid årets början\")","v":{"$error":"#REF!"}},null,null,null,null,null,null,{"$f":"#REF!","v":{"$error":"#REF!"}},null,{"$f":"#REF!","v":{"$error":"#REF!"}},null,0]
[null,null,null,"Avyttringar och utrangeringar",null,null,null,null,null,null,0,null,0,null,0]
[null,null,null,"Återförda nedskrivningar",null,null,null,null,null,null,0,null,0,null,0]
[null,null,null,"Omklassificeringar mm",null,null,null,null,null,null,0,null,0,null,0]
[null,null,null,"Årets nedskrivningar (anskaffningsvärde)",null,null,null,null,null,null,0,null,0,null,0]
[null,null,null,null,null,null,null,null,null,null,{"$f":"SUM(K688:K693)","v":{"$error":"#REF!"}},null,{"$f":"SUM(M688:M693)","v":{"$error":"#REF!"}},null,0]
[null,null,null,"Redovisat värde vid årets slut",null,null,null,null,null,null,{"$f":"K$208","v":0},null,{"$f":"M$208","v":0},null,0]
[null,null,null,null,null,null,null,{"$f":"IF(ABS(M696)+ABS(#REF!)=0,\"\",\"Differens\")","v":{"$error":"#REF!"}},null,null,{"$f":"ROUND(K$695-SUM(K$676:K$694)/2,0)","v":{"$error":"#REF!"}},null,{"$f":"ROUND(M$695-SUM(M$676:M$694)/2,0)","v":{"$error":"#REF!"}},null,0]
[null,null,null,"[ Kommentar ... ]"]
[null,"w",null,"[ Krav enl ÅRL 5:3, FAR SRSs rekommendation RedR1 avsnitt 6 p K.]"]
[]
[]
[]
[null,null,null,"Not 2",{"$f":"$D$211","v":"Byggnader och mark"}]
[null,null,null,null,null,null,null,null,null,null,"2017-12-31",null,"2016-12-31",null,"2012-12-31",null,null,null,null,null,null,null,"F.år"]
[]
[null,null,null,"Ackumulerade anskaffningsvärden"]
[null,null,null,{"$f":"IF(SUM(K706:L706)=SUM(K710:L710),\"Vid årets början och slut\",\"Vid årets början\")","v":"Vid årets början och slut"},null,null,null,null,null,null,7635825,null,7917825,null,7917825]
[null,null,null,"Nyanskaffningar",null,null,null,null,null,null,0,null,0,null,0]
[null,null,null,"Avyttringar och utrangeringar",null,null,null,null,null,null,0,null,0,null,0]
[null,null,null,"Omklassificeringar",null,null,null,null,null,null,0,null,0,null,0]
[null,null,null,null,null,null,null,null,null,null,{"$f":"SUM(K705:K709)","v":7635825},null,{"$f":"SUM(M705:M709)","v":7917825},null,7917825]
[]
[null,null,null,"Ackumulerade avskrivningar enligt plan"]
[null,null,null,{"$f":"IF(SUM(K713:L713)=SUM(L717:M717),\"Vid årets början och slut\",\"Vid årets början\")","v":"Vid årets början och slut"},null,null,null,null,null,null,-282000,null,-258500,null,-70500]
[null,null,null,"Avyttringar och utrangeringar",null,null,null,null,null,null,0,null,0,null,0]
[null,null,null,"Omklassificeringar mm",null,null,null,null,null,null,0,null,0,null,0]
[null,null,null,"Årets avskrivning enligt plan på anskaffningsvärden",null,null,null,null,null,null,-23500,null,-23500,null,-70500]
[null,null,null,null,null,null,null,null,null,null,{"$f":"SUM(K713:K716)","v":-305500},null,{"$f":"SUM(M713:M716)","v":-282000},null,-141000]
[null,null,null,"Ackumulerade uppskrivningar"]
[null,null,null,{"$f":"IF(SUM(K719:L719)=SUM(K724:L724),\"Vid årets början och slut\",\"Vid årets början\")","v":{"$error":"#REF!"}},null,null,null,null,null,null,{"$f":"#REF!","v":{"$error":"#REF!"}},null,{"$f":"#REF!","v":{"$error":"#REF!"}},null,0]
[null,null,null,"Avyttringar och utrangeringar",null,null,null,null,null,null,0,null,0,null,0]
[null,null,null,"Omklassificeringar",null,null,null,null,null,null,0,null,0,null,0]
[null,null,null,"Årets uppskrivningar",null,null,null,null,null,null,0,null,0,null,0]
[null,null,null,"Årets avskrivningar på uppskrivet belopp",null,null,null,null,null,null,0,null,0,null,0]
[null,null,null,null,null,null,null,null,null,null,{"$f":"SUM(K718:K723)","v":{"$error":"#REF!"}},null,{"$f":"SUM(M718:M723)","v":{"$error":"#REF!"}},null,0]
[null,null,null,"Ackumulerade nedskrivningar"]
[null,null,null,{"$f":"IF(SUM(K726:L726)=SUM(K731:L731),\"Vid årets början och slut\",\"Vid årets början\")","v":{"$error":"#REF!"}},null,null,null,null,null,null,{"$f":"#REF!","v":{"$error":"#REF!"}},null,{"$f":"#REF!","v":{"$error":"#REF!"}},null,0]
[null,null,null,"Avyttringar och utrangeringar",null,null,null,null,null,null,0,null,0,null,0]
[null,null,null,"Återförda nedskrivningar",null,null,null,null,null,null,0,null,0,null,0]
[null,null,null,"Omklassificeringar mm",null,null,null,null,null,null,0,null,0,null,0]
[null,null,null,"Årets nedskrivningar ( anskaffningsvärde)",null,null,null,null,null,null,0,null,0,null,0]
[null,null,null,null,null,null,null,null,null,null,{"$f":"SUM(K725:K730)","v":{"$error":"#REF!"}},null,{"$f":"SUM(M725:M730)","v":{"$error":"#REF!"}},null,0]
[null,null,null,"Redovisat värde vid årets slut",null,null,null,null,null,null,{"$f":"K$211","v":7612325},null,{"$f":"M$211","v":7635825},null,7776825]
[null,null,null,null,null,null,null,null,null,null,null,null,null,null,0]
[null,null,null,"Varav mark",null,null,null,null,null,null,791800,null,791800,null,791800]
[null,null,null,null,null,null,null,null,null,null,null,null,null,0,null,0]
[null,null,null,"Taxeringsvärden, byggnader",null,null,null,null,null,null,0,null,0,null,3307000]
[null,null,null,"Taxeringsvärden, mark",null,null,null,null,null,null,0,null,0,null,759000]
[]
[null,null,null,"1) I anskaffningsvärdena ingår aktiverad ränta med",null,null,null,null,null,null,0,null,0,null,0]
[]
[null,null,null,"[ Kommentar... ]"]
[null,"w",null,"[ Krav enl ÅRL 5:3, FAR SRSs rekommendation RedR1 avsnitt 6 p K. ]"]
[null,"w"]
[null,"w",null,"Ev erhållna statliga stöd för förvärv ska lämnas så länge tillgången finns i balansräkningen. Bruttoanskaffning"]
[null,"w",null,"redovisas och det statliga stödet som en reduktion på egen rad. Upplysning om förväntade utgifter för nedmontering"]
[null,"w",null,"och bortforsling av tillgången som har aktiverats i en förvärvad anläggningstillgång ska lämnas."]
[null,"w",null,"Upplysning om ränteutgift för lånat kapital som har aktiverats i en egenproducerad anläggningstillgång ska lämnas.]"]
[]
[null,null,null,"Not",{"$f":"$D$212","v":"Maskiner och andra tekniska anläggningar"}]
[null,null,null,null,null,null,null,null,null,null,{"$f":"K$202","v":41638},null,{"$f":"M$202","v":41273},null,"2012-12-31",null,null,null,null,null,null,null,"F.år"]
[]
[null,null,null,"Ackumulerade anskaffningsvärden"]
[null,null,null,{"$f":"IF(SUM(K753:L753)=SUM(K757:L757),\"Vid årets början och slut\",\"Vid årets början\")","v":{"$error":"#REF!"}},null,null,null,null,null,null,{"$f":"#REF!","v":{"$error":"#REF!"}},null,{"$f":"#REF!","v":{"$error":"#REF!"}},null,0]
[null,null,null,"Nyanskaffningar",null,null,null,null,null,null,0,null,0,null,0]
[null,null,null,"Avyttringar och utrangeringar",null,null,null,null,null,null,0,null,0,null,0]
[null,null,null,"Omklassificeringar",null,null,null,null,null,null,0,null,0,null,0]
[null,null,null,null,null,null,null,null,null,null,{"$f":"SUM(K752:K756)","v":{"$error":"#REF!"}},null,{"$f":"SUM(M752:M756)","v":{"$error":"#REF!"}},null,0]
[]
[null,null,null,"Ackumulerade avskrivningar enligt plan"]
[null,null,null,{"$f":"IF(SUM(K760:L760)=SUM(L764:M764),\"Vid årets början och slut\",\"Vid årets början\")","v":{"$error":"#REF!"}},null,null,null,null,null,null,{"$f":"#REF!","v":{"$error":"#REF!"}},null,{"$f":"#REF!","v":{"$error":"#REF!"}},null,0]
[null,null,null,"Avyttringar och utrangeringar",null,null,null,null,null,null,0,null,0,null,0]
[null,null,null,"Omklassificeringar",null,null,null,null,null,null,0,null,0,null,0]
[null,null,null,"Årets avskrivning enligt plan",null,null,null,null,null,null,{"$f":"-ABS(K$619)","v":0},null,{"$f":"-ABS(M$619)","v":0},null,0]
[null,null,null,null,null,null,null,null,null,null,{"$f":"SUM(K760:K763)","v":{"$error":"#REF!"}},null,{"$f":"SUM(M760:M763)","v":{"$error":"#REF!"}},null,0]
[null,null,null,"Ackumulerade uppskrivningar"]
[null,null,null,{"$f":"IF(SUM(K766:L766)=SUM(K771:L771),\"Vid årets början och slut\",\"Vid årets början\")","v":{"$error":"#REF!"}},null,null,null,null,null,null,{"$f":"#REF!","v":{"$error":"#REF!"}},null,{"$f":"#REF!","v":{"$error":"#REF!"}},null,0]
[null,null,null,"Avyttringar och utrangeringar",null,null,null,null,null,null,0,null,0,null,0]
[null,null,null,"Omklassificeringar",null,null,null,null,null,null,0,null,0,null,0]
[null,null,null,"Årets uppskrivningar",null,null,null,null,null,null,0,null,0,null,0]
[null,null,null,"Årets avskrivningar på uppskrivet belopp",null,null,null,null,null,null,0,null,0,null,0]
[null,null,null,null,null,null,null,null,null,null,{"$f":"SUM(K766:K770)","v":{"$error":"#REF!"}},null,{"$f":"SUM(M766:M770)","v":{"$error":"#REF!"}},null,0]
[null,null,null,"Ackumulerade nedskrivningar"]
[null,null,null,{"$f":"IF(SUM(K773:L773)=SUM(K778:L778),\"Vid årets början och slut\",\"Vid årets början\")","v":{"$error":"#REF!"}},null,null,null,null,null,null,{"$f":"#REF!","v":{"$error":"#REF!"}},null,{"$f":"#REF!","v":{"$error":"#REF!"}},null,0]
[null,null,null,"Avyttringar och utrangeringar",null,null,null,null,null,null,0,null,0,null,0]
[null,null,null,"Återförda nedskrivningar",null,null,null,null,null,null,0,null,0,null,0]
[null,null,null,"Omklassificeringar mm",null,null,null,null,null,null,0,null,0,null,0]
[null,null,null,"Årets nedskrivningar ( anskaffningsvärde)",null,null,null,null,null,null,0,null,0,null,0]
[null,null,null,null,null,null,null,null,null,null,{"$f":"SUM(K773:K777)","v":{"$error":"#REF!"}},null,{"$f":"SUM(M773:M777)","v":{"$error":"#REF!"}},null,0]
[null,null,null,"Redovisat värde vid årets slut",null,null,null,null,null,null,{"$f":"K$212","v":0},null,{"$f":"M$212","v":0},null,0]
[null,null,null,null,null,null,null,{"$f":"IF(ABS(M780)+ABS(#REF!)=0,\"\",\"Differens\")","v":{"$error":"#REF!"}},null,null,{"$f":"ROUND(K$779-SUM(K$752:K$778)/2,0)","v":{"$error":"#REF!"}},null,{"$f":"ROUND(M$779-SUM(M$752:M$778)/2,0)","v":{"$error":"#REF!"}},null,0]
[null,null,null,"[ Kommentar... ]"]
[null,"w",null,"[ Krav enl ÅRL 5:3, FAR SRSs rekommendation RedR1 avsnitt 6 p K.]"]
[null,"w"]
[null,"w",null,"Ev erhållna statliga stöd för förvärv ska lämnas så länge tillgången finns i balansräkningen. Bruttoanskaffning"]
[null,"w",null,"redovisas och det statliga stödet som en reduktion på egen rad. Upplysning om förväntade utgifter för nedmontering"]
[null,"w",null,"och bortforsling av tillgången som har aktiverats i en förvärvad anläggningstillgång ska lämnas. Upplysning om"]
[null,"w",null,"ränteutgift för lånat kapital som har aktiverats i en egenproducerad anläggningstillgång ska lämnas.]"]
[]
[null,null,null,"Not",{"$f":"$D$213","v":"Inventarier, verktyg och installationer"}]
[null,null,null,null,null,null,null,null,null,null,{"$f":"K$202","v":41638},null,{"$f":"M$202","v":41273},null,"2012-12-31",null,null,null,null,null,null,null,"F.år"]
[]
[null,null,null,"Ackumulerade anskaffningsvärden"]
[null,null,null,{"$f":"IF(SUM(K793:L793)=SUM(K797:L797),\"Vid årets början och slut\",\"Vid årets början\")","v":{"$error":"#REF!"}},null,null,null,null,null,null,{"$f":"#REF!","v":{"$error":"#REF!"}},null,{"$f":"#REF!","v":{"$error":"#REF!"}},null,0]
[null,null,null,"Nyanskaffningar",null,null,null,null,null,null,0,null,0,null,0]
[null,null,null,"Avyttringar och utrangeringar",null,null,null,null,null,null,0,null,0,null,0]
[null,null,null,"Omklassificeringar",null,null,null,null,null,null,0,null,0,null,0]
[null,null,null,null,null,null,null,null,null,null,{"$f":"SUM(K792:K796)","v":{"$error":"#REF!"}},null,{"$f":"SUM(M792:M796)","v":{"$error":"#REF!"}},null,0]
[]
[null,null,null,"Ackumulerade avskrivningar enligt plan"]
[null,null,null,{"$f":"IF(SUM(K800:L800)=SUM(L804:M804),\"Vid årets början och slut\",\"Vid årets början\")","v":{"$error":"#REF!"}},null,null,null,null,null,null,{"$f":"#REF!","v":{"$error":"#REF!"}},null,{"$f":"#REF!","v":{"$error":"#REF!"}},null,-70500]
[null,null,null,"Avyttringar och utrangeringar",null,null,null,null,null,null,0,null,0,null,0]
[null,null,null,"Omklassificeringar",null,null,null,null,null,null,0,null,0,null,0]
[null,null,null,"Årets avskrivning enligt plan",null,null,null,null,null,null,{"$f":"-ABS(K$620)","v":-23500},null,{"$f":"-ABS(M$620)","v":-23500},null,-70500]
[null,null,null,null,null,null,null,null,null,null,{"$f":"SUM(K799:K803)","v":{"$error":"#REF!"}},null,{"$f":"SUM(M799:M803)","v":{"$error":"#REF!"}},null,-141000]
[null,null,null,"Ackumulerade uppskrivningar"]
[null,null,null,{"$f":"IF(SUM(K806:L806)=SUM(L811:M811),\"Vid årets början och slut\",\"Vid årets början\")","v":{"$error":"#REF!"}},null,null,null,null,null,null,{"$f":"#REF!","v":{"$error":"#REF!"}},null,{"$f":"#REF!","v":{"$error":"#REF!"}},null,0]
[null,null,null,"Avyttringar och utrangeringar",null,null,null,null,null,null,0,null,0,null,0]
[null,null,null,"Omklassificeringar",null,null,null,null,null,null,0,null,0,null,0]
[null,null,null,"Årets uppskrivningar",null,null,null,null,null,null,0,null,0,null,0]
[null,null,null,"Årets avskrivningar på uppskrivet belopp",null,null,null,null,null,null,0,null,0,null,0]
[null,null,null,null,null,null,null,null,null,null,{"$f":"SUM(K806:K810)","v":{"$error":"#REF!"}},null,{"$f":"SUM(M806:M810)","v":{"$error":"#REF!"}},null,0]
[null,null,null,"Ackumulerade nedskrivningar"]
[null,null,null,{"$f":"IF(SUM(K813:L813)=SUM(K818:L818),\"Vid årets början och slut\",\"Vid årets början\")","v":{"$error":"#REF!"}},null,null,null,null,null,null,{"$f":"#REF!","v":{"$error":"#REF!"}},null,{"$f":"#REF!","v":{"$error":"#REF!"}},null,0]
[null,null,null,"Avyttringar och utrangeringar",null,null,null,null,null,null,0,null,0,null,0]
[null,null,null,"Återförda nedskrivningar",null,null,null,null,null,null,0,null,0,null,0]
[null,null,null,"Omklassificeringar mm",null,null,null,null,null,null,0,null,0,null,0]
[null,null,null,"Årets nedskrivningar ( anskaffningsvärde)",null,null,null,null,null,null,0,null,0,null,0]
[null,null,null,null,null,null,null,null,null,null,{"$f":"SUM(K812:K817)","v":{"$error":"#REF!"}},null,{"$f":"SUM(M812:M817)","v":{"$error":"#REF!"}},null,0]
[null,null,null,"Redovisat värde vid årets slut",null,null,null,null,null,null,{"$f":"K$213","v":0},null,{"$f":"M$213","v":0},null,0]
[null,null,null,null,null,null,null,{"$f":"IF(ABS(M820)+ABS(#REF!)=0,\"\",\"Differens\")","v":{"$error":"#REF!"}},null,null,{"$f":"ROUND(K$819-SUM(K$792:K$818)/2,0)","v":{"$error":"#REF!"}},null,{"$f":"ROUND(M$819-SUM(M$792:M$818)/2,0)","v":{"$error":"#REF!"}},null,141000]
[null,null,null,"[ Kommentar... ]"]
[null,"w",null,"[ Krav enl ÅRL 5:3, FAR SRSs rekommandation RedR1 avsnitt 6 p K. ]"]
[null,"w"]
[null,"w",null,"Ev erhållna statliga stöd för förvärv ska lämnas så länge tillgången finns i balansräkningen. Bruttoanskaffning"]
[null,"w",null,"redovisas och det statliga stödet som en reduktion på egen rad. Upplysning om förväntade utgifter för nedmontering"]
[null,"w",null,"och bortforsling av tillgången som har aktiverats i en förvärvad anläggningstillgång ska lämnas. Upplysning om"]
[null,"w",null,"ränteutgift för lånat kapital som har aktiverats i en egenproducerad anläggningstillgång ska lämnas.]"]
[]
[]
[null,null,null,"Not 2","Pågående nyanläggningar och förskott av-"]
[null,null,null,null,"seende materiella anläggningstillgångar",null,null,null,null,null,{"$f":"K$202","v":41638},null,{"$f":"M$202","v":41273},null,"2012-12-31",null,null,null,null,null,null,null,"F.år"]
[]
[null,null,null,{"$f":"IF(SUM(K833:L833)=SUM(K837:L837),\"Vid årets början och slut\",\"Vid årets början\")","v":{"$error":"#REF!"}},null,null,null,null,null,null,{"$f":"#REF!","v":{"$error":"#REF!"}},null,{"$f":"#REF!","v":{"$error":"#REF!"}},null,0]
[null,null,null,"Omklassificeringar",null,null,null,null,null,null,0,null,0,null,0]
[null,null,null,"Investeringar",null,null,null,null,null,null,0,null,0,null,0]
[null,null,null,"Under året utbetalda förskott",null,null,null,null,null,null,0,null,0,null,0]
[null,null,null,"Redovisat värde vid årets slut",null,null,null,null,null,null,{"$f":"K$215","v":0},null,{"$f":"M$215","v":0},null,0]
[null,null,null,null,null,null,null,{"$f":"IF(ABS(M838)+ABS(#REF!)=0,\"\",\"Differens\")","v":{"$error":"#REF!"}},null,null,{"$f":"ROUND(K837-SUM(K832:INDEX(I:I,ROW()-2)),0)","v":{"$error":"#REF!"}},null,{"$f":"ROUND(M837-SUM(M832:INDEX(K:K,ROW()-2)),0)","v":{"$error":"#REF!"}},null,0]
[null,null,null,"[ Kommentar... ]"]
[null,"w",null,"[ Krav enl ÅRL 5:3, FAR SRSs rekommendation RedR1 avsnitt 6 p K. ]"]
[]
[null,null,null,"Not",{"$f":"$D$218","v":"Långfristiga värdepappersinnehav"}]
[null,null,null,null,null,null,null,null,null,null,{"$f":"K$202","v":41638},null,{"$f":"M$202","v":41273},null,"2012-12-31",null,null,null,null,null,null,null,"F.år"]
[]
[null,null,null,"Ackumulerade anskaffningsvärden"]
[null,null,null,{"$f":"IF(SUM(K846:L846)=SUM(L850:M850),\"Vid årets början och slut\",\"Vid årets början\")","v":{"$error":"#REF!"}},null,null,null,null,null,null,{"$f":"#REF!","v":{"$error":"#REF!"}},null,{"$f":"#REF!","v":{"$error":"#REF!"}},null,0]
[null,null,null,"Tillkommande tillgångar",null,null,null,null,null,null,0,null,0,null,0]
[null,null,null,"Avgående tillgångar",null,null,null,null,null,null,0,null,0,null,0]
[null,null,null,"Omklassificeringar",null,null,null,null,null,null,0,null,0,null,0]
[null,null,null,null,null,null,null,null,null,null,{"$f":"SUM(K846:K849)","v":{"$error":"#REF!"}},null,{"$f":"SUM(M846:M849)","v":{"$error":"#REF!"}},null,0]
[null,null,null,"Ackumulerade uppskrivningar"]
[null,null,null,{"$f":"IF(SUM(K852:L852)=SUM(K857:L857),\"Vid årets början och slut\",\"Vid årets början\")","v":{"$error":"#REF!"}},null,null,null,null,null,null,{"$f":"#REF!","v":{"$error":"#REF!"}},null,{"$f":"#REF!","v":{"$error":"#REF!"}},null,0]
[null,null,null,"Avgående tillgångar",null,null,null,null,null,null,0,null,0,null,0]
[null,null,null,"Omklassificeringar mm",null,null,null,null,null,null,0,null,0,null,0]
[null,null,null,"Årets uppskrivningar",null,null,null,null,null,null,0,null,0,null,0]
[null,null,null,"Årets avskrivningar på uppskrivet belopp",null,null,null,null,null,null,0,null,0,null,0]
[null,null,null,null,null,null,null,null,null,null,{"$f":"SUM(K851:K856)","v":{"$error":"#REF!"}},null,{"$f":"SUM(M851:M856)","v":{"$error":"#REF!"}},null,0]
[null,null,null,"Ackumulerade nedskrivningar"]
[null,null,null,{"$f":"IF(SUM(K859:L859)=SUM(K864:L864),\"Vid årets början och slut\",\"Vid årets början\")","v":{"$error":"#REF!"}},null,null,null,null,null,null,{"$f":"#REF!","v":{"$error":"#REF!"}},null,{"$f":"#REF!","v":{"$error":"#REF!"}},null,0]
[null,null,null,"Avgående tillgångar",null,null,null,null,null,null,0,null,0,null,0]
[null,null,null,"Återförda nedskrivningar",null,null,null,null,null,null,0,null,0,null,0]
[null,null,null,"Omklassificeringar mm",null,null,null,null,null,null,0,null,0,null,0]
[null,null,null,"Årets nedskrivningar (anskaffningsvärde)",null,null,null,null,null,null,0,null,0,null,0]
[null,null,null,null,null,null,null,null,null,null,{"$f":"SUM(K858:K863)","v":{"$error":"#REF!"}},null,{"$f":"SUM(M858:M863)","v":{"$error":"#REF!"}},null,0]
[null,null,null,"Redovisat värde vid årets slut",null,null,null,null,null,null,{"$f":"K$218","v":0},null,{"$f":"M$218","v":0},null,0]
[null,null,null,null,null,null,null,{"$f":"IF(ABS(M866)+ABS(#REF!)=0,\"\",\"Differens\")","v":{"$error":"#REF!"}},null,null,{"$f":"ROUND(K$865-SUM(K$845:K$864)/2,0)","v":{"$error":"#REF!"}},null,{"$f":"ROUND(M$865-SUM(M$845:M$864)/2,0)","v":{"$error":"#REF!"}},null,0]
[null,null,null,null,null,null,null,null,null,null,"Redovisat värde",null,"Redovisat värde"]
[]
[null,null,null,"Noterade andelar",null,null,null,null,null,null,0,null,0]
[null,null,null,"/spec/",null,null,null,null,null,null,0,null,0]
[null,null,null,"/spec/",null,null,null,null,null,null,0,null,0]
[null,null,null,"Övrigt /spec/",null,null,null,null,null,null,{"$f":"K873-SUM(K867:INDEX(I:I,ROW()-1))","v":0},null,{"$f":"M873-SUM(M867:INDEX(K:K,ROW()-1))","v":0}]
[null,null,null,null,null,null,null,null,null,null,{"$f":"K$218","v":0},null,{"$f":"M$218","v":0}]
[null,null,null,null,null,null,null,{"$f":"IF(ABS(M874)+ABS(#REF!)>0,\"Differens\",\"\")","v":{"$error":"#REF!"}}]
[null,null,null,"[ Kommentar ... ]"]
[null,"w",null,"[ Krav enl ÅRL 5:3, 5:8-9, FAR SRSs rekommendation RedR1 avsnitt 6 p K, BFN U99:1. Uppgift om börsvärde krav"]
[null,"w",null,"enl BFN U99:1. Aktieinnehav med minst 20% av kapitalet ska specificeras. För aktier och andra andelar som är"]
[null,"w",null,"registrerade eller noterade på svensk eller utländsk börs eller på auktoriserad marknadsplats bör bokfört belopp"]
[null,"w",null,"samt på balansdagen gällande börsvärde eller liknande anges. Dessa värden kan sammanföras till en summa,"]
[null,"w",null,"enligt ovan. ]"]
[]
[null,null,null,"Not",{"$f":"$D$219","v":"Andra långfristiga fordringar"}]
[null,null,null,null,null,null,null,null,null,null,{"$f":"K$202","v":41638},null,{"$f":"M$202","v":41273},null,"2012-12-31"]
[]
[null,null,null,"Ackumulerade anskaffningsvärden"]
[null,null,null,{"$f":"IF(SUM(K886:L886)=SUM(K905:L905),\"Vid årets början och slut\",\"Vid årets början\")","v":{"$error":"#REF!"}},null,null,null,null,null,null,{"$f":"#REF!","v":{"$error":"#REF!"}},null,{"$f":"#REF!","v":{"$error":"#REF!"}},null,0]
[null,null,null,"Tillkommande fordringar",null,null,null,null,null,null,0,null,0,null,0]
[null,null,null,"Reglerade fordringar",null,null,null,null,null,null,0,null,0,null,0]
[null,null,null,"Omklassificeringar",null,null,null,null,null,null,0,null,0,null,0]
[null,null,null,null,null,null,null,null,null,null,{"$f":"SUM(K885:K889)","v":{"$error":"#REF!"}},null,{"$f":"SUM(M885:M889)","v":{"$error":"#REF!"}},null,0]
[null,null,null,"Ackumulerade uppskrivningar"]
[null,null,null,{"$f":"IF(SUM(K892:L892)=SUM(K906:L906),\"Vid årets början och slut\",\"Vid årets början\")","v":{"$error":"#REF!"}},null,null,null,null,null,null,{"$f":"#REF!","v":{"$error":"#REF!"}},null,{"$f":"#REF!","v":{"$error":"#REF!"}},null,0]
[null,null,null,"Reglerade fordringar",null,null,null,null,null,null,0,null,0,null,0]
[null,null,null,"Omklassificeringar mm",null,null,null,null,null,null,0,null,0,null,0]
[null,null,null,"Årets uppskrivningar",null,null,null,null,null,null,0,null,0,null,0]
[null,null,null,"Årets avskrivningar på uppskrivet belopp",null,null,null,null,null,null,0,null,0,null,0]
[null,null,null,null,null,null,null,null,null,null,{"$f":"SUM(K892:K896)","v":{"$error":"#REF!"}},null,{"$f":"SUM(M892:M896)","v":{"$error":"#REF!"}},null,0]
[]
[null,null,null,"Ackumulerade nedskrivningar"]
[null,null,null,{"$f":"IF(SUM(K900:L900)=SUM(K905:L905),\"Vid årets början och slut\",\"Vid årets början\")","v":{"$error":"#REF!"}},null,null,null,null,null,null,{"$f":"#REF!","v":{"$error":"#REF!"}},null,{"$f":"#REF!","v":{"$error":"#REF!"}},null,0]
[null,null,null,"Reglerade fordringar",null,null,null,null,null,null,0,null,0,null,0]
[null,null,null,"Återförda nedskrivningar",null,null,null,null,null,null,0,null,0,null,0]
[null,null,null,"Omklassificeringar",null,null,null,null,null,null,0,null,0,null,0]
[null,null,null,"Årets nedskrivningar (anskaffningsvärde)",null,null,null,null,null,null,0,null,0,null,0]
[null,null,null,null,null,null,null,null,null,null,{"$f":"SUM(K899:K904)","v":{"$error":"#REF!"}},null,{"$f":"SUM(M899:M904)","v":{"$error":"#REF!"}},null,0]
[null,null,null,"Redovisat värde vid årets slut",null,null,null,null,null,null,{"$f":"K$219","v":0},null,{"$f":"M$219","v":0},null,0]
[null,null,null,null,null,null,null,{"$f":"IF(ABS(M907)+ABS(#REF!)=0,\"\",\"Differens\")","v":{"$error":"#REF!"}},null,null,{"$f":"ROUND(K$906-SUM(K$885:K$905)/2,0)","v":{"$error":"#REF!"}},null,{"$f":"ROUND(M$906-SUM(M$885:M$905)/2,0)","v":{"$error":"#REF!"}},null,0]
[null,null,null,"[ Kommentar ... ]"]
[]
[null,null,null,"Not",{"$f":"$D$227","v":"Pågående arbete för annans räkning"}]
[null,null,null,null,null,null,null,null,null,null,{"$f":"K$202","v":41638},null,{"$f":"M$202","v":41273},null,"2012-12-31"]
[]
[null,null,null,"Nedlagda utgifter på entreprenader",null,null,null,null,null,null,0,null,0,null,0]
[null,null,null,"/spec/",null,null,null,null,null,null,0,null,0,null,0]
[null,null,null,"Avgår: Delfakturering på entreprenader",null,null,null,null,null,null,{"$f":"ABS(K916-SUM(K912:INDEX(I:I,ROW()-1)))","v":0},null,{"$f":"ABS(M916-SUM(M912:INDEX(K:K,ROW()-1)))","v":0},null,0]
[null,null,null,null,null,null,null,null,null,null,{"$f":"ABS(K$227-K$279)","v":0},null,{"$f":"ABS(M$227-M$279)","v":0},null,0]
[]
[null,null,null,"[ Kommentar... ]"]
[null,"w",null,"[ Noten är obligatorisk endast om nettoredovisning tillämpas i balansräkningen. Vid successiv vinstavräkning"]
[null,"w",null,"redovisas inga pågående arbeten utan endast upplupen eller förutbetald intäkt på dessa objekt. ]"]
[]
[null,null,null,"Not 3","Övriga skulder"]
[null,null,null,null,null,null,null,null,null,null,"2017-12-31",null,"2016-12-31"]
[]
[null,null,null,"Fond för inre underhåll lägenhet A",null,null,null,null,null,null,30380,null,14390]
[null,null,null,"Fond för inre underhåll lägenhet B",null,null,null,null,null,null,37911,null,28968]
[null,null,null,"/spec/",null,null,null,null,null,null,0,null,0]
[null,null,null,"Övrigt",null,null,null,null,null,null,{"$f":"K929-SUM(K924:INDEX(I:I,ROW()-1))","v":0},null,{"$f":"M929-SUM(M924:INDEX(K:K,ROW()-1))","v":-68291}]
[null,null,null,null,null,null,null,null,null,null,68291,null,43358]
[]
[null,null,null,"[ Kommentar... ]"]
[null,"w",null,"[ Krav enl ÅRL 5:8-9, BFN U99:1. Aktieinnehav med minst 20% av kapitalet ska specifiseras. För aktier och andra"]
[null,"w",null,"andelar som är registrerade eller noterade på svensk eller utländsk börs eller på auktoriserad marknadsplats bör"]
[null,"w",null,"bokfört belopp samt på balansdagen gällande börsvärde eller liknande anges. Dessa värden kan sammanföras till"]
[null,"w",null,"en summa, enligt ovan. Om egna aktier ingår skall dessa särredovisas. ]"]
[]
[null,null,null,"Not 4",{"$f":"$D$248","v":"Eget kapital"}]
[]
[null,null,null,null,null,null,null,"Insats",null,null,"Fond för yttre",null,"Fritt eget kapital"]
[null,null,null,null,null,null,null,"kapital ",null,null,"underhåll"]
[null,null,null,"Vid årets början",null,null,null,6900000,null,null,82675,null,106716]
[null,null,null,"Aktieägartillskott, erhållna"]
[null,null,null,"Koncernbidrag"]
[null,null,null,"Skatteeffekt på koncernbidrag"]
[null,null,null,"Förändring av fonder ",null,null,null,0]
[null,null,null,"[Spec krävs för varje enskild fond]",null,null,null,0]
[null,null,null,"Övriga förändringar ",null,null,null,0]
[null,null,null,"[Spec krävs]",null,null,null,0]
[null,null,null,"Disposition enl årsstämmobeslut"]
[null,null,null,"•  Avsättning till fond för yttre underhåll",null,null,null,null,null,null,21150,null,-21150]
[null,null,null,"•  Återbetalning av aktieägartillskott"]
[null,null,null,"•  Förlusttäckning från fonder",null,null,null,null,null,null,0,null,0]
[null,null,null,"Årets resultat",null,null,null,null,null,null,null,null,23465]
[null,null,null,"Vid årets slut",null,null,null,{"$f":"$M$250","v":6900000},null,null,103825,null,{"$f":"SUM(M941:M953)","v":109031}]
[null,null,null,null,null,null,null,{"$f":"ROUND(M250-SUM(H941:H953),0)","v":0}]
[null,null,null,"[ Krav enl ÅRL 5:14. Övriga förändringar av det egna kapitalet kan vara nedsättning av aktiekapitalet, fondemission,"]
[null,null,null,"nyemission, förvärv/ överlåtelse av egna aktier etc. Samtliga förändringar måste specificeras. Förändring av"]
[null,null,null,"uppskrivningsfond eller fond för verkligt värde krav enl ÅRL 5:5, FAR SRS rekommendation RedR 1.]"]
[null,null,null,"[ Kommentarer … ]"]
[]
[null,null,null,"[ Kommentera a) eventuella emissioner under registrering, att föregående års pågående nyemission nu har"]
[null,null,null,"registrerats e.dyl. ; b) orsakerna till upplösning av uppskrivningsfond, ex. avskrivning/nedskrivning eller försäljning/"]
[null,null,null,"utrangering ]"]
[]
[null,null,null,"[Upplysning om villkorlig återbetalningsskyldighet för aktieägartillskott skall anges i eget kapitalnoten enligt FAR"]
[null,null,null,"SRSs rekommendation RedR1, avsnitt 4 punkt 31. ]"]
[]
[null,null,null,"Erhållna villkorade aktieägartillskott uppgår till xxxx (xxxx)"]
[]
[null,null,null,"Not",{"$f":"$D$261","v":"Obeskattade reserver"}]
[null,null,null,null,null,null,null,null,null,null,{"$f":"K$202","v":41638},null,{"$f":"M$202","v":41273},null,"2012-12-31"]
[]
[null,null,null,"Ackumulerade avskrivningar utöver plan :"]
[null,null,null,"•  Balanserade utgifter för utvecklingsarbeten och likn",null,null,null,null,null,null,0,null,0,null,0]
[null,null,null,"•  Hyresrätter och liknande rättigheter",null,null,null,null,null,null,0,null,0,null,0]
[null,null,null,"•  Byggnader och mark",null,null,null,null,null,null,0,null,0,null,0]
[null,null,null,"•  Maskiner och inventarier",null,null,null,null,null,null,0,null,0,null,0]
[null,null,null,{"$f":"$D$263","v":"Periodiseringsfonder"}]
[null,null,null,"•  Avsatt vid taxering 2004",null,null,null,null,null,null,0,null,0,null,0]
[null,null,null,"•  Avsatt vid taxering 2005",null,null,null,null,null,null,0,null,0,null,0]
[null,null,null,"•  Avsatt vid taxering 2006",null,null,null,null,null,null,0,null,0,null,0]
[null,null,null,"•  Avsatt vid taxering 2007",null,null,null,null,null,null,0,null,0,null,0]
[null,null,null,"•  Avsatt vid taxering 2008",null,null,null,null,null,null,0,null,0,null,0]
[null,null,null,"•  Avsatt vid taxering 2009",null,null,null,null,null,null,0,null,0,null,0]
[null,null,null,"•  Avsatt vid taxering 2010",null,null,null,null,null,null,0,null,0,null,0]
[null,null,null,{"$f":"$D$264","v":"Övriga obeskattade reserver [var för sig]"},null,null,null,null,null,null,0,null,0,null,0]
[null,null,null,null,null,null,null,null,null,null,{"$f":"K$265","v":0},null,{"$f":"M$265","v":0},null,0]
[null,null,null,null,null,null,null,{"$f":"IF(ABS(M988)+ABS(#REF!)=0,\"\",\"Differens\")","v":{"$error":"#REF!"}},null,null,{"$f":"ROUND(K987-SUM(K973:INDEX(I:I,ROW()-2)),0)","v":0},null,{"$f":"ROUND(M987-SUM(M973:INDEX(K:K,ROW()-2)),0)","v":0},null,0]
[null,null,null,"[ Kommentarer … ]"]
[]
[null,"w",null,"[ FAR SRSs rekommendation RedR1. Ovanstående spec används endast om indelning direkt i balansräkningen ej"]
[null,null,null,"önskas. ]"]
[]
[null,null,null,"Not",{"$f":"$D$262","v":"Ackumulerade avskrivningar utöver plan"}]
[null,null,null,null,null,null,null,null,null,null,{"$f":"K$202","v":41638},null,{"$f":"M$202","v":41273},null,"2012-12-31"]
[]
[null,null,null,"Balanserade utgifter för utvecklingsarbeten och likn",null,null,null,null,null,null,0,null,0,null,0]
[null,null,null,"Hyresrätter och liknande rättigheter",null,null,null,null,null,null,0,null,0,null,0]
[null,null,null,"Byggnader och mark",null,null,null,null,null,null,0,null,0,null,0]
[null,null,null,"Maskiner och inventarier",null,null,null,null,null,null,0,null,0,null,0]
[null,null,null,null,null,null,null,null,null,null,{"$f":"K$262","v":0},null,{"$f":"M$262","v":0},null,0]
[null,null,null,null,null,null,null,{"$f":"IF(ABS(M1002)+ABS(#REF!)=0,\"\",\"Differens\")","v":{"$error":"#REF!"}},null,null,{"$f":"ROUND(K1001-SUM(K996:INDEX(I:I,ROW()-2)),0)","v":0},null,{"$f":"ROUND(M1001-SUM(M996:INDEX(K:K,ROW()-2)),0)","v":0},null,0]
[null,null,null,"[ Kommentar ... ]"]
[null,"w",null,"[ FAR SRSs rekommendation RedR1. Denna not används för ytterligare specifikation då obeskattade reserver"]
[null,"w",null,"specificeras direkt i balansräkningen. ]"]
[]
[null,null,null,"Not",{"$f":"$D$263","v":"Periodiseringsfonder"}]
[null,null,null,null,null,null,null,null,null,null,{"$f":"K$202","v":41638},null,{"$f":"M$202","v":41273},null,"2012-12-31"]
[]
[null,null,null,"Periodiseringsfond, avsatt vid taxering 2004",null,null,null,null,null,null,0,null,0,null,0]
[null,null,null,"Periodiseringsfond, avsatt vid taxering 2005",null,null,null,null,null,null,0,null,0,null,0]
[null,null,null,"Periodiseringsfond, avsatt vid taxering 2006",null,null,null,null,null,null,0,null,0,null,0]
[null,null,null,"Periodiseringsfond, avsatt vid taxering 2007",null,null,null,null,null,null,0,null,0,null,0]
[null,null,null,"Periodiseringsfond, avsatt vid taxering 2008",null,null,null,null,null,null,0,null,0,null,0]
[null,null,null,"Periodiseringsfond, avsatt vid taxering 2009",null,null,null,null,null,null,0,null,0,null,0]
[null,null,null,"Periodiseringsfond, avsatt vid taxering 2010",null,null,null,null,null,null,0,null,0,null,0]
[null,null,null,null,null,null,null,null,null,null,{"$f":"K$263","v":0},null,{"$f":"M$263","v":0},null,0]
[null,null,null,null,null,null,null,{"$f":"IF(ABS(M1018)+ABS(#REF!)=0,\"\",\"Differens\")","v":{"$error":"#REF!"}},null,null,{"$f":"ROUND(K1017-SUM(K1009:INDEX(I:I,ROW()-2)),0)","v":0},null,{"$f":"ROUND(M1017-SUM(M1009:INDEX(K:K,ROW()-2)),0)","v":0},null,0]
[null,"w",null,"[ Denna not används om obeskattade reserver specificeras direkt i BR. ]"]
[]
[null,null,null,"Not","Checkräkningskredit"]
[null,null,null,null,null,null,null,null,null,null,{"$f":"K$202","v":41638},null,{"$f":"M$202","v":41273},null,"2012-12-31",null,null,null,null,null,null,null,"F.år"]
[]
[null,null,null,"Beviljad kreditlimit",null,null,null,null,null,null,0,null,0,null,0]
[null,null,null,"Outnyttjad del",null,null,null,null,null,null,{"$f":"K1026-SUM(K1024:K1024)","v":0},null,{"$f":"M1026-SUM(M1024:M1024)","v":0},null,0]
[null,null,null,"Utnyttjat kreditbelopp",null,null,null,null,null,null,{"$f":"K$278","v":0},null,{"$f":"M$278","v":0},null,0]
[]
[null,null,null,{"$f":"\"Säkerheter redovisas i not \"&+MID(D1043,5,2)&+\" 'Ställda säkerheter för skulder till kreditinstitut'.\"","v":"Säkerheter redovisas i not  'Ställda säkerheter för skulder till kreditinstitut'."}]
[null,"w",null,"[ Krav enl ÅRL 5:11, RedR3. Jämförelseår ej obligatoriskt ! Kommentarer ... ex: ]"]
[null,null,null,"[ Efter balansdagen har företagets checkkredit utökats med xxx xxx. ]"]
[]
[null,null,null,"Not",{"$f":"$D$273&+\", långfristiga\"","v":"Skulder till kreditinstitut, långfristiga"}]
[null,null,null,null,null,null,null,null,null,null,{"$f":"K$202","v":41638},null,{"$f":"M$202","v":41273},null,"2012-12-31",null,null,null,null,null,null,null,"F.år"]
[]
[null,null,null,"Förfallotidpunkt, 1-5 år från balansdagen",null,null,null,null,null,null,0,null,0,null,0]
[]
[null,null,null,"Förfallotidpunkt, senare än fem år från balansdagen",null,null,null,null,null,null,{"$f":"K1038-SUM(K1035:K1035)","v":450000},null,{"$f":"M1038-SUM(M1035:M1035)","v":700000},null,1000000]
[null,null,null,null,null,null,null,null,null,null,{"$f":"K$273","v":450000},null,{"$f":"M$273","v":700000},null,1000000]
[]
[null,null,null,"[ Kommentar ... ]"]
[null,"w",null,"[ Krav enl ÅRL 5:10. Jämförelseår ej obligatoriskt! ]"]
[]
[null,null,null,"Not","Ställda säkerheter för skulder till kreditinstitut"]
[null,null,null,null,null,null,null,null,null,null,{"$f":"K$202","v":41638},null,{"$f":"M$202","v":41273},null,"2012-12-31",null,null,null,null,null,null,null,"F.år"]
[]
[null,null,null,"Fastighetsinteckningar",null,null,null,null,null,null,0,null,0,null,0]
[null,null,null,"Företagsinteckningar",null,null,null,null,null,null,0,null,0,null,0]
[null,null,null,"Tillgångar med äganderättsförbehåll",null,null,null,null,null,null,0,null,0,null,0]
[null,null,null,"Övriga [var för sig]",null,null,null,null,null,null,0,null,0,null,0]
[null,null,null,null,null,null,null,null,null,null,{"$f":"SUM(K1045:INDEX(I:I,ROW()-1))","v":0},null,{"$f":"SUM(M1045:INDEX(K:K,ROW()-1))","v":0},null,0]
[]
[null,"w",null,"[ Krav enl ÅRL 5:11, FAR SRSs rekommendation RedR1 ]"]
[]
[null,null,null,"Not",{"$f":"$D$274&+\", lång- och kortfristiga\"","v":"Byggnadskreditiv, lång- och kortfristiga"}]
[null,null,null,null,"",null,null,null,null,null,{"$f":"K$202","v":41638},null,{"$f":"M$202","v":41273},null,"2012-12-31",null,null,null,null,null,null,null,"F.år"]
[]
[null,null,null,"Skulder som förfaller senare än fem år från balansdagen",null,null,null,null,null,null,0,null,0,null,0]
[]
[null,"w",null,"[ Krav enl ÅRL 5:10. Spec är obligatorisk avseende skulder som förfaller senare än fem år efter balansdagen.]"]
[]
[null,null,null,"Ställda säkerheter för övriga skulder",null,null,null,null,null,null,{"$f":"IF(K1066=0,\"Inga\",\"\")","v":"Inga"},null,{"$f":"IF(M1066=0,\"Inga\",\"\")","v":"Inga"},null,"Inga"]
[]
[null,null,null,"Fastighetsinteckningar",null,null,null,null,null,null,0,null,0,null,0]
[null,null,null,"Företagsinteckningar",null,null,null,null,null,null,0,null,0,null,0]
[null,null,null,"Övriga [var för sig]",null,null,null,null,null,null,0,null,0,null,0]
[null,null,null,null,null,null,null,null,null,null,{"$f":"SUM(K1062:INDEX(I:I,ROW()-1))","v":0},null,{"$f":"SUM(M1062:INDEX(K:K,ROW()-1))","v":0},null,0]
[null,null,null,"Not 5","Upplupna kostnader och Förutbetalda intäkter",null,null,null,null,null,null,null,null,null,null,null,null,null,null,null,null,null,"F.år"]
[null,null,null,null,null,null,null,null,null,null,"2017-12-31",null,"2016-12-31",null,"2012-12-31",null,null,null,null,null,null,null,"F.år"]
[null,null,null,null,null,null,null,null,null,null,null,null,null,null,null,null,null,null,null,null,null,null,"F.år"]
[null,null,null,"Upplupna kostnader",null,null,null,null,null,null,7838,null,14667,null,5984,null,null,null,null,null,null,null,"F.år"]
[null,null,null,"Förutbetalda hyresinkomster",null,null,null,null,null,null,3000,null,3000,null,132000,null,null,null,null,null,null,null,"F.år"]
[null,null,null,"Övriga upplupna kostnader",null,null,null,null,null,null,0,null,0,null,0,null,null,null,null,null,null,null,"F.år"]
[null,null,null,null,null,null,null,null,null,null,{"$f":"SUM(K1070:K1072)","v":10838},null,{"$f":"SUM(M1070:M1072)","v":17667},null,139284,null,null,null,null,null,null,null,"F.år"]
[null,null,null,null,null,null,null,null,null,null,null,null,null,null,null,null,null,null,null,null,null,null,"F.år"]
[null,null,null,null,null,null,null,null,null,null,null,null,null,null,null,null,null,null,null,null,null,null,"F.år"]
[null,null,null,null,null,null,null,null,null,null,null,null,null,null,null,null,null,null,null,null,null,null,"F.år"]
[null,null,null,null,null,null,null,null,null,null,null,null,null,null,null,null,null,null,null,null,null,null,"F.år"]
[null,null,null,null,null,null,null,null,null,null,null,null,null,null,null,null,null,null,null,null,null,null,"F.år"]
[null,null,null,null,null,null,null,null,null,null,null,null,null,null,null,null,null,null,null,null,null,null,"F.år"]
[null,null,null,null,null,null,null,null,null,null,null,null,null,null,null,null,null,null,null,null,null,null,"F.år"]
[null,null,null,null,null,null,null,null,null,null,null,null,null,null,null,null,null,null,null,null,null,null,"F.år"]
[null,null,null,"Stockholm den 2018-05-"]
[]
[]
[]
[]
[null,null,null,"Kerstin Edman",null,null,null,"Peo Axelsson"]
[]
[]
[]
[]
[]
[null,null,null,"Claes Engblom"]
[]
[]
[]
[]
[]
[null,null,null,"NN",null,null,null,"NN"]
[null,null,null,"Unionen-representant",null,null,null,"Metall-representant"]
[]
[]
[]
[null,null,null,"Min revisionsberättelse har lämnats 2018-"]
[]
[]
[]
[]
[null,null,null,"Carina Staf"]
[null,null,null,"Revisor"]

{"sheet":"Sheet1","index":4,"n_rows":0,"n_cols":0,"rows_kept":0,"cut":false,"hidden":true,"merged":[]}